Workbook

Sheet Калькуляция
E1: Накл.расх. | F1: 0.1 | L1: УТВЕРЖДАЮ:
E2: Смет. Приб. | F2: 0.25 | L2: Директор
E3: Непредв. Затр. | F3: 0.02
L4: ______________И.В. Сидоров
L5: "___"________________2017г.
A6: Ведомость объемов работ (дефектная ведомость)
A7: Ремонт
A8: (категория ремонта)
A10: (наименование объекта, станционный номер, инвентарный номер)
A12: № п.п. | B12: Наименование работ | C12: Объем работ | E12: Демонтируемый материал | I12: Потребность в основных материалах
C13: Ед. изм. | D13: Кол-во | E13: Стоимость работ (ФОТ) | F13: Стоимость материалов | G13: Сметная прибыль | H13: Накладные расходы | I13: Наименование | J13: Ед. изм. | K13: Кол-во | L13: Стоимость
A14: 1 | B14: 2 | C14: 3 | D14: 4 | E14: 5 | F14: 6 | G14: 7 | H14: 8 | I14: 9 | J14: 10 | K14: 11 | L14: 12
A15: Раздел 1
A16: =IF(D16>0,COUNT(D$16:D16,""),"") -> 1 | B16: Облицовка стен листами из ГКЛ по металлическим направляющим | C16: =IFERROR(VLOOKUP(B16,Лист1!B$2:J$999,3,0),"") -> м2 | D16: 10 | E16: =IFERROR(D16*VLOOKUP(B16,Лист1!B$1:J$999,5,0),"") -> 3000 | F16: =SUM(L17:L24) -> 0 | G16: =IFERROR(E16*F$2,"") -> 750 | H16: =IFERROR(E16*F$1,"") -> 300
A17: =IF(D17>0,COUNT(D$16:D17,""),"") ->  | C17: =IFERROR(VLOOKUP(B17,Лист1!B$2:J$999,3,0),"") ->  | E17: =IFERROR(D17*VLOOKUP(B17,Лист1!B$1:J$999,5,0),"") ->  | G17: =IFERROR(E17*F$2,"") ->  | H17: =IFERROR(E17*F$1,"") ->  | I17: Профиль ПН 27*28 | J17: =IFERROR(VLOOKUP(I17,Лист1!$N$3:$Q$500,2,0),"") -> шт | L17: =IFERROR(CEILING(VLOOKUP(I17,Лист1!$N$3:$Q$500,4,0)*K17,1),"") -> 0
A18: =IF(D18>0,COUNT(D$16:D18,""),"") ->  | C18: =IFERROR(VLOOKUP(B18,Лист1!B$2:J$999,3,0),"") ->  | E18: =IFERROR(D18*VLOOKUP(B18,Лист1!B$1:J$999,5,0),"") ->  | I18: Профиль ПН 27*28 | J18: =IFERROR(VLOOKUP(I18,Лист1!$N$3:$Q$500,2,0),"") -> шт | L18: =IFERROR(CEILING(VLOOKUP(I18,Лист1!$N$3:$Q$500,4,0)*K18,1),"") -> 0
A19: =IF(D19>0,COUNT(D$16:D19,""),"") ->  | C19: =IFERROR(VLOOKUP(B19,Лист1!B$2:J$999,3,0),"") ->  | E19: =IFERROR(D19*VLOOKUP(B19,Лист1!B$1:J$999,5,0),"") ->  | I19: Профиль ПП 60*27 | J19: =IFERROR(VLOOKUP(I19,Лист1!$N$3:$Q$500,2,0),"") -> шт | L19: =IFERROR(CEILING(VLOOKUP(I19,Лист1!$N$3:$Q$500,4,0)*K19,1),"") -> 0
A20: =IF(D20>0,COUNT(D$16:D20,""),"") ->  | C20: =IFERROR(VLOOKUP(B20,Лист1!B$2:J$999,3,0),"") ->  | E20: =IFERROR(D20*VLOOKUP(B20,Лист1!B$1:J$999,5,0),"") ->  | I20: Саморез 3,5*11 (клоп) | J20: =IFERROR(VLOOKUP(I20,Лист1!$N$3:$Q$500,2,0),"") -> шт | L20: =IFERROR(CEILING(VLOOKUP(I20,Лист1!$N$3:$Q$500,4,0)*K20,1),"") -> 0
A21: =IF(D21>0,COUNT(D$16:D21,""),"") ->  | C21: =IFERROR(VLOOKUP(B21,Лист1!B$2:J$999,3,0),"") ->  | E21: =IFERROR(D21*VLOOKUP(B21,Лист1!B$1:J$999,5,0),"") ->  | I21: Саморез 3,5*25 | J21: =IFERROR(VLOOKUP(I21,Лист1!$N$3:$Q$500,2,0),"") -> шт | L21: =IFERROR(CEILING(VLOOKUP(I21,Лист1!$N$3:$Q$500,4,0)*K21,1),"") -> 0
A22: =IF(D22>0,COUNT(D$16:D22,""),"") ->  | C22: =IFERROR(VLOOKUP(B22,Лист1!B$2:J$999,3,0),"") ->  | E22: =IFERROR(D22*VLOOKUP(B22,Лист1!B$1:J$999,5,0),"") ->  | I22: Соединитель "Краб" | J22: =IFERROR(VLOOKUP(I22,Лист1!$N$3:$Q$500,2,0),"") -> шт | L22: =IFERROR(CEILING(VLOOKUP(I22,Лист1!$N$3:$Q$500,4,0)*K22,1),"") -> 0
A23: =IF(D23>0,COUNT(D$16:D23,""),"") ->  | C23: =IFERROR(VLOOKUP(B23,Лист1!B$2:J$999,3,0),"") ->  | E23: =IFERROR(D23*VLOOKUP(B23,Лист1!B$1:J$999,5,0),"") ->  | I23: Подвес прямой 60*27 | J23: =IFERROR(VLOOKUP(I23,Лист1!$N$3:$Q$500,2,0),"") -> шт | L23: =IFERROR(CEILING(VLOOKUP(I23,Лист1!$N$3:$Q$500,4,0)*K23,1),"") -> 0
A24: =IF(D24>0,COUNT(D$16:D24,""),"") ->  | C24: =IFERROR(VLOOKUP(B24,Лист1!B$2:J$999,3,0),"") ->  | E24: =IFERROR(D24*VLOOKUP(B24,Лист1!B$1:J$999,5,0),"") ->  | I24: Лист ГКЛ 9,5мм | J24: =IFERROR(VLOOKUP(I24,Лист1!$N$3:$Q$500,2,0),"") -> шт | L24: =IFERROR(CEILING(VLOOKUP(I24,Лист1!$N$3:$Q$500,4,0)*K24,1),"") -> 0
A25: =IF(D25>0,COUNT(D$16:D25,""),"") ->  | C25: =IFERROR(VLOOKUP(B25,Лист1!B$2:J$999,3,0),"") ->  | E25: =IFERROR(D25*VLOOKUP(B25,Лист1!B$1:J$999,5,0),"") ->  | I25: Лента армирующая | J25: =IFERROR(VLOOKUP(I25,Лист1!$N$3:$Q$500,2,0),"") -> м.п. | L25: =IFERROR(CEILING(VLOOKUP(I25,Лист1!$N$3:$Q$500,4,0)*K25,1),"") -> 0
A26: =IF(D26>0,COUNT(D$16:D26,""),"") -> 2 | B26: Облицовка стен листами из ГВЛ в два слоя по металлическим направляющим | C26: =IFERROR(VLOOKUP(B26,Лист1!B$2:J$999,3,0),"") -> м2 | D26: 10 | E26: =IFERROR(D26*VLOOKUP(B26,Лист1!B$1:J$999,5,0),"") -> 3500 | F26: =SUM(L27:L34) -> 2934 | G26: 875 | H26: 350 | J26: =IFERROR(VLOOKUP(I26,Лист1!$N$3:$Q$500,2,0),"") ->  | L26: =IFERROR(CEILING(VLOOKUP(I26,Лист1!$N$3:$Q$500,4,0)*K26,1),"") -> 
A27: =IF(D27>0,COUNT(D$16:D27,""),"") ->  | C27: =IFERROR(VLOOKUP(B27,Лист1!B$2:J$999,3,0),"") ->  | E27: =IFERROR(D27*VLOOKUP(B27,Лист1!B$1:J$999,5,0),"") ->  | I27: Профиль ПН 27*28 | J27: =IFERROR(VLOOKUP(I27,Лист1!$N$3:$Q$500,2,0),"") -> шт | K27: =IFERROR(CEILING(VLOOKUP(I27,Лист1!C$3:F$10,3,0)*$D$16,1),"") -> 16 | L27: =IFERROR(CEILING(VLOOKUP(I27,Лист1!$N$3:$Q$500,4,0)*K27,1),"") -> 1264
A28: =IF(D28>0,COUNT(D$16:D28,""),"") ->  | C28: =IFERROR(VLOOKUP(B28,Лист1!B$2:J$999,3,0),"") ->  | E28: =IFERROR(D28*VLOOKUP(B28,Лист1!B$1:J$999,5,0),"") ->  | I28: Профиль ПП 60*27 | J28: =IFERROR(VLOOKUP(I28,Лист1!$N$3:$Q$500,2,0),"") -> шт | K28: =IFERROR(CEILING(VLOOKUP(I28,Лист1!C$3:F$10,3,0)*$D$16,1),"") -> 10 | L28: =IFERROR(CEILING(VLOOKUP(I28,Лист1!$N$3:$Q$500,4,0)*K28,1),"") -> 1050
A29: =IF(D29>0,COUNT(D$16:D29,""),"") ->  | C29: =IFERROR(VLOOKUP(B29,Лист1!B$2:J$999,3,0),"") ->  | E29: =IFERROR(D29*VLOOKUP(B29,Лист1!B$1:J$999,5,0),"") ->  | I29: Саморез 3,5*11 (клоп) | J29: =IFERROR(VLOOKUP(I29,Лист1!$N$3:$Q$500,2,0),"") -> шт | K29: =IFERROR(CEILING(VLOOKUP(I29,Лист1!C$3:F$10,3,0)*$D$16,1),"") -> 476 | L29: =IFERROR(CEILING(VLOOKUP(I29,Лист1!$N$3:$Q$500,4,0)*K29,1),"") -> 167
A30: =IF(D30>0,COUNT(D$16:D30,""),"") ->  | C30: =IFERROR(VLOOKUP(B30,Лист1!B$2:J$999,3,0),"") ->  | E30: =IFERROR(D30*VLOOKUP(B30,Лист1!B$1:J$999,5,0),"") ->  | I30: Саморез 3,5*35 (двузаходной) | J30: =IFERROR(VLOOKUP(I30,Лист1!$N$3:$Q$500,2,0),"") -> шт | K30: =IFERROR(CEILING(VLOOKUP(I30,Лист1!C$3:F$10,3,0)*$D$16,1),"") ->  | L30: =IFERROR(CEILING(VLOOKUP(I30,Лист1!$N$3:$Q$500,4,0)*K30,1),"") -> 
A31: =IF(D31>0,COUNT(D$16:D31,""),"") ->  | C31: =IFERROR(VLOOKUP(B31,Лист1!B$2:J$999,3,0),"") ->  | E31: =IFERROR(D31*VLOOKUP(B31,Лист1!B$1:J$999,5,0),"") ->  | I31: Соединитель "Краб" | J31: =IFERROR(VLOOKUP(I31,Лист1!$N$3:$Q$500,2,0),"") -> шт | K31: =IFERROR(CEILING(VLOOKUP(I31,Лист1!C$3:F$10,3,0)*$D$16,1),"") -> 5 | L31: =IFERROR(CEILING(VLOOKUP(I31,Лист1!$N$3:$Q$500,4,0)*K31,1),"") -> 50
A32: =IF(D32>0,COUNT(D$16:D32,""),"") ->  | C32: =IFERROR(VLOOKUP(B32,Лист1!B$2:J$999,3,0),"") ->  | E32: =IFERROR(D32*VLOOKUP(B32,Лист1!B$1:J$999,5,0),"") ->  | I32: Подвес прямой 60*27 | J32: =IFERROR(VLOOKUP(I32,Лист1!$N$3:$Q$500,2,0),"") -> шт | K32: =IFERROR(CEILING(VLOOKUP(I32,Лист1!C$3:F$10,3,0)*$D$16,1),"") -> 50 | L32: =IFERROR(CEILING(VLOOKUP(I32,Лист1!$N$3:$Q$500,4,0)*K32,1),"") -> 300
A33: =IF(D33>0,COUNT(D$16:D33,""),"") ->  | C33: =IFERROR(VLOOKUP(B33,Лист1!B$2:J$999,3,0),"") ->  | E33: =IFERROR(D33*VLOOKUP(B33,Лист1!B$1:J$999,5,0),"") ->  | I33: Лист ГВЛ 10мм | J33: =IFERROR(VLOOKUP(I33,Лист1!$N$3:$Q$500,2,0),"") -> шт | K33: =IFERROR(CEILING(VLOOKUP(I33,Лист1!C$3:F$10,3,0)*$D$16,1),"") ->  | L33: =IFERROR(CEILING(VLOOKUP(I33,Лист1!$N$3:$Q$500,4,0)*K33,1),"") -> 
A34: =IF(D34>0,COUNT(D$16:D34,""),"") ->  | C34: =IFERROR(VLOOKUP(B34,Лист1!B$2:J$999,3,0),"") ->  | E34: =IFERROR(D34*VLOOKUP(B34,Лист1!B$1:J$999,5,0),"") ->  | I34: Лента армирующая | J34: =IFERROR(VLOOKUP(I34,Лист1!$N$3:$Q$500,2,0),"") -> м.п. | K34: =IFERROR(CEILING(VLOOKUP(I34,Лист1!C$3:F$10,3,0)*$D$16,1),"") -> 32 | L34: =IFERROR(CEILING(VLOOKUP(I34,Лист1!$N$3:$Q$500,4,0)*K34,1),"") -> 103
A35: =IF(D35>0,COUNT(D$16:D35,""),"") ->  | C35: =IFERROR(VLOOKUP(B35,Лист1!B$2:J$999,3,0),"") ->  | E35: =IFERROR(D35*VLOOKUP(B35,Лист1!B$1:J$999,5,0),"") ->  | J35: =IFERROR(VLOOKUP(I35,Лист1!$N$3:$Q$500,2,0),"") ->  | K35: =IFERROR(CEILING(VLOOKUP(I35,Лист1!C$3:F$10,3,0)*$D$16,1),"") ->  | L35: =IFERROR(CEILING(VLOOKUP(I35,Лист1!$N$3:$Q$500,4,0)*K35,1),"") -> 
A36: =IF(D36>0,COUNT(D$16:D36,""),"") ->  | C36: =IFERROR(VLOOKUP(B36,Лист1!B$2:J$999,3,0),"") ->  | E36: =IFERROR(D36*VLOOKUP(B36,Лист1!B$1:J$999,5,0),"") ->  | J36: =IFERROR(VLOOKUP(I36,Лист1!$N$3:$Q$500,2,0),"") ->  | K36: =IFERROR(CEILING(VLOOKUP(I36,Лист1!C$3:F$10,3,0)*$D$16,1),"") ->  | L36: =IFERROR(CEILING(VLOOKUP(I36,Лист1!$N$3:$Q$500,4,0)*K36,1),"") -> 
A37: =IF(D37>0,COUNT(D$16:D37,""),"") ->  | C37: =IFERROR(VLOOKUP(B37,Лист1!B$2:J$999,3,0),"") ->  | E37: =IFERROR(D37*VLOOKUP(B37,Лист1!B$1:J$999,5,0),"") ->  | J37: =IFERROR(VLOOKUP(I37,Лист1!$N$3:$Q$500,2,0),"") ->  | K37: =IFERROR(CEILING(VLOOKUP(I37,Лист1!C$3:F$10,3,0)*$D$16,1),"") ->  | L37: =IFERROR(CEILING(VLOOKUP(I37,Лист1!$N$3:$Q$500,4,0)*K37,1),"") -> 
A38: =IF(D38>0,COUNT(D$16:D38,""),"") ->  | C38: =IFERROR(VLOOKUP(B38,Лист1!B$2:J$999,3,0),"") ->  | E38: =IFERROR(D38*VLOOKUP(B38,Лист1!B$1:J$999,5,0),"") ->  | J38: =IFERROR(VLOOKUP(I38,Лист1!$N$3:$Q$500,2,0),"") ->  | K38: =IFERROR(CEILING(VLOOKUP(I38,Лист1!C$3:F$10,3,0)*$D$16,1),"") ->  | L38: =IFERROR(CEILING(VLOOKUP(I38,Лист1!$N$3:$Q$500,4,0)*K38,1),"") -> 
A39: =IF(D39>0,COUNT(D$16:D39,""),"") ->  | C39: =IFERROR(VLOOKUP(B39,Лист1!B$2:J$999,3,0),"") ->  | E39: =IFERROR(D39*VLOOKUP(B39,Лист1!B$1:J$999,5,0),"") ->  | J39: =IFERROR(VLOOKUP(I39,Лист1!$N$3:$Q$500,2,0),"") ->  | K39: =IFERROR(CEILING(VLOOKUP(I39,Лист1!C$3:F$10,3,0)*$D$16,1),"") ->  | L39: =IFERROR(CEILING(VLOOKUP(I39,Лист1!$N$3:$Q$500,4,0)*K39,1),"") -> 
A40: =IF(D40>0,COUNT(D$16:D40,""),"") ->  | C40: =IFERROR(VLOOKUP(B40,Лист1!B$2:J$999,3,0),"") ->  | E40: =IFERROR(D40*VLOOKUP(B40,Лист1!B$1:J$999,5,0),"") ->  | J40: =IFERROR(VLOOKUP(I40,Лист1!$N$3:$Q$500,2,0),"") ->  | K40: =IFERROR(CEILING(VLOOKUP(I40,Лист1!C$3:F$10,3,0)*$D$16,1),"") ->  | L40: =IFERROR(CEILING(VLOOKUP(I40,Лист1!$N$3:$Q$500,4,0)*K40,1),"") -> 
A41: =IF(D41>0,COUNT(D$16:D41,""),"") ->  | C41: =IFERROR(VLOOKUP(B41,Лист1!B$2:J$999,3,0),"") ->  | E41: =IFERROR(D41*VLOOKUP(B41,Лист1!B$1:J$999,5,0),"") ->  | J41: =IFERROR(VLOOKUP(I41,Лист1!$N$3:$Q$500,2,0),"") ->  | K41: =IFERROR(CEILING(VLOOKUP(I41,Лист1!C$3:F$10,3,0)*$D$16,1),"") ->  | L41: =IFERROR(CEILING(VLOOKUP(I41,Лист1!$N$3:$Q$500,4,0)*K41,1),"") -> 
A42: =IF(D42>0,COUNT(D$16:D42,""),"") ->  | C42: =IFERROR(VLOOKUP(B42,Лист1!B$2:J$999,3,0),"") ->  | E42: =IFERROR(D42*VLOOKUP(B42,Лист1!B$1:J$999,5,0),"") ->  | J42: =IFERROR(VLOOKUP(I42,Лист1!$N$3:$Q$500,2,0),"") ->  | K42: =IFERROR(CEILING(VLOOKUP(I42,Лист1!C$3:F$10,3,0)*$D$16,1),"") ->  | L42: =IFERROR(CEILING(VLOOKUP(I42,Лист1!$N$3:$Q$500,4,0)*K42,1),"") -> 
A43: =IF(D43>0,COUNT(D$16:D43,""),"") ->  | C43: =IFERROR(VLOOKUP(B43,Лист1!B$2:J$999,3,0),"") ->  | E43: =IFERROR(D43*VLOOKUP(B43,Лист1!B$1:J$999,5,0),"") ->  | J43: =IFERROR(VLOOKUP(I43,Лист1!$N$3:$Q$500,2,0),"") ->  | K43: =IFERROR(CEILING(VLOOKUP(I43,Лист1!C$3:F$10,3,0)*$D$16,1),"") ->  | L43: =IFERROR(CEILING(VLOOKUP(I43,Лист1!$N$3:$Q$500,4,0)*K43,1),"") -> 
A44: =IF(D44>0,COUNT(D$16:D44,""),"") ->  | C44: =IFERROR(VLOOKUP(B44,Лист1!B$2:J$999,3,0),"") ->  | E44: =IFERROR(D44*VLOOKUP(B44,Лист1!B$1:J$999,5,0),"") ->  | J44: =IFERROR(VLOOKUP(I44,Лист1!$N$3:$Q$500,2,0),"") ->  | K44: =IFERROR(CEILING(VLOOKUP(I44,Лист1!C$3:F$10,3,0)*$D$16,1),"") ->  | L44: =IFERROR(CEILING(VLOOKUP(I44,Лист1!$N$3:$Q$500,4,0)*K44,1),"") -> 
A45: =IF(D45>0,COUNT(D$16:D45,""),"") ->  | C45: =IFERROR(VLOOKUP(B45,Лист1!B$2:J$999,3,0),"") ->  | E45: =IFERROR(D45*VLOOKUP(B45,Лист1!B$1:J$999,5,0),"") ->  | J45: =IFERROR(VLOOKUP(I45,Лист1!$N$3:$Q$500,2,0),"") ->  | L45: =IFERROR(CEILING(VLOOKUP(I45,Лист1!$N$3:$Q$500,4,0)*K45,1),"") -> 
A46: =IF(D46>0,COUNT(D$16:D46,""),"") ->  | C46: =IFERROR(VLOOKUP(B46,Лист1!B$2:J$999,3,0),"") ->  | E46: =IFERROR(D46*VLOOKUP(B46,Лист1!B$1:J$999,5,0),"") ->  | J46: =IFERROR(VLOOKUP(I46,Лист1!$N$3:$Q$500,2,0),"") ->  | L46: =IFERROR(CEILING(VLOOKUP(I46,Лист1!$N$3:$Q$500,4,0)*K46,1),"") -> 
A47: =IF(D47>0,COUNT(D$16:D47,""),"") ->  | C47: =IFERROR(VLOOKUP(B47,Лист1!B$2:J$999,3,0),"") ->  | E47: =IFERROR(D47*VLOOKUP(B47,Лист1!B$1:J$999,5,0),"") ->  | J47: =IFERROR(VLOOKUP(I47,Лист1!$N$3:$Q$500,2,0),"") ->  | L47: =IFERROR(CEILING(VLOOKUP(I47,Лист1!$N$3:$Q$500,4,0)*K47,1),"") -> 
A48: =IF(D48>0,COUNT(D$16:D48,""),"") ->  | C48: =IFERROR(VLOOKUP(B48,Лист1!B$2:J$999,3,0),"") ->  | E48: =IFERROR(D48*VLOOKUP(B48,Лист1!B$1:J$999,5,0),"") ->  | J48: =IFERROR(VLOOKUP(I48,Лист1!$N$3:$Q$500,2,0),"") ->  | L48: =IFERROR(CEILING(VLOOKUP(I48,Лист1!$N$3:$Q$500,4,0)*K48,1),"") -> 
A49: =IF(D49>0,COUNT(D$16:D49,""),"") ->  | C49: =IFERROR(VLOOKUP(B49,Лист1!B$2:J$999,3,0),"") ->  | E49: =IFERROR(D49*VLOOKUP(B49,Лист1!B$1:J$999,5,0),"") ->  | J49: =IFERROR(VLOOKUP(I49,Лист1!$N$3:$Q$500,2,0),"") ->  | L49: =IFERROR(CEILING(VLOOKUP(I49,Лист1!$N$3:$Q$500,4,0)*K49,1),"") -> 
A50: =IF(D50>0,COUNT(D$16:D50,""),"") ->  | C50: =IFERROR(VLOOKUP(B50,Лист1!B$2:J$999,3,0),"") ->  | E50: =IFERROR(D50*VLOOKUP(B50,Лист1!B$1:J$999,5,0),"") ->  | J50: =IFERROR(VLOOKUP(I50,Лист1!$N$3:$Q$500,2,0),"") ->  | L50: =IFERROR(CEILING(VLOOKUP(I50,Лист1!$N$3:$Q$500,4,0)*K50,1),"") -> 
A51: =IF(D51>0,COUNT(D$16:D51,""),"") ->  | C51: =IFERROR(VLOOKUP(B51,Лист1!B$2:J$999,3,0),"") ->  | E51: =IFERROR(D51*VLOOKUP(B51,Лист1!B$1:J$999,5,0),"") ->  | J51: =IFERROR(VLOOKUP(I51,Лист1!$N$3:$Q$500,2,0),"") ->  | L51: =IFERROR(CEILING(VLOOKUP(I51,Лист1!$N$3:$Q$500,4,0)*K51,1),"") -> 
A52: =IF(D52>0,COUNT(D$16:D52,""),"") ->  | C52: =IFERROR(VLOOKUP(B52,Лист1!B$2:J$999,3,0),"") ->  | E52: =IFERROR(D52*VLOOKUP(B52,Лист1!B$1:J$999,5,0),"") ->  | J52: =IFERROR(VLOOKUP(I52,Лист1!$N$3:$Q$500,2,0),"") ->  | L52: =IFERROR(CEILING(VLOOKUP(I52,Лист1!$N$3:$Q$500,4,0)*K52,1),"") -> 
A53: =IF(D53>0,COUNT(D$16:D53,""),"") ->  | C53: =IFERROR(VLOOKUP(B53,Лист1!B$2:J$999,3,0),"") ->  | E53: =IFERROR(D53*VLOOKUP(B53,Лист1!B$1:J$999,5,0),"") ->  | J53: =IFERROR(VLOOKUP(I53,Лист1!$N$3:$Q$500,2,0),"") ->  | L53: =IFERROR(CEILING(VLOOKUP(I53,Лист1!$N$3:$Q$500,4,0)*K53,1),"") -> 
A54: =IF(D54>0,COUNT(D$16:D54,""),"") ->  | C54: =IFERROR(VLOOKUP(B54,Лист1!B$2:J$999,3,0),"") ->  | E54: =IFERROR(D54*VLOOKUP(B54,Лист1!B$1:J$999,5,0),"") ->  | J54: =IFERROR(VLOOKUP(I54,Лист1!$N$3:$Q$500,2,0),"") ->  | L54: =IFERROR(CEILING(VLOOKUP(I54,Лист1!$N$3:$Q$500,4,0)*K54,1),"") -> 
A55: =IF(D55>0,COUNT(D$16:D55,""),"") ->  | C55: =IFERROR(VLOOKUP(B55,Лист1!B$2:J$999,3,0),"") ->  | E55: =IFERROR(D55*VLOOKUP(B55,Лист1!B$1:J$999,5,0),"") ->  | J55: =IFERROR(VLOOKUP(I55,Лист1!$N$3:$Q$500,2,0),"") ->  | L55: =IFERROR(CEILING(VLOOKUP(I55,Лист1!$N$3:$Q$500,4,0)*K55,1),"") -> 
A56: =IF(D56>0,COUNT(D$16:D56,""),"") ->  | C56: =IFERROR(VLOOKUP(B56,Лист1!B$2:J$999,3,0),"") ->  | E56: =IFERROR(D56*VLOOKUP(B56,Лист1!B$1:J$999,5,0),"") ->  | J56: =IFERROR(VLOOKUP(I56,Лист1!$N$3:$Q$500,2,0),"") ->  | L56: =IFERROR(CEILING(VLOOKUP(I56,Лист1!$N$3:$Q$500,4,0)*K56,1),"") -> 
A57: =IF(D57>0,COUNT(D$16:D57,""),"") ->  | C57: =IFERROR(VLOOKUP(B57,Лист1!B$2:J$999,3,0),"") ->  | E57: =IFERROR(D57*VLOOKUP(B57,Лист1!B$1:J$999,5,0),"") ->  | J57: =IFERROR(VLOOKUP(I57,Лист1!$N$3:$Q$500,2,0),"") ->  | L57: =IFERROR(CEILING(VLOOKUP(I57,Лист1!$N$3:$Q$500,4,0)*K57,1),"") -> 
A58: =IF(D58>0,COUNT(D$16:D58,""),"") ->  | C58: =IFERROR(VLOOKUP(B58,Лист1!B$2:J$999,3,0),"") ->  | E58: =IFERROR(D58*VLOOKUP(B58,Лист1!B$1:J$999,5,0),"") ->  | J58: =IFERROR(VLOOKUP(I58,Лист1!$N$3:$Q$500,2,0),"") ->  | L58: =IFERROR(CEILING(VLOOKUP(I58,Лист1!$N$3:$Q$500,4,0)*K58,1),"") -> 
A59: =IF(D59>0,COUNT(D$16:D59,""),"") ->  | C59: =IFERROR(VLOOKUP(B59,Лист1!B$2:J$999,3,0),"") ->  | E59: =IFERROR(D59*VLOOKUP(B59,Лист1!B$1:J$999,5,0),"") ->  | J59: =IFERROR(VLOOKUP(I59,Лист1!$N$3:$Q$500,2,0),"") ->  | L59: =IFERROR(CEILING(VLOOKUP(I59,Лист1!$N$3:$Q$500,4,0)*K59,1),"") -> 
A60: =IF(D60>0,COUNT(D$16:D60,""),"") ->  | C60: =IFERROR(VLOOKUP(B60,Лист1!B$2:J$999,3,0),"") ->  | E60: =IFERROR(D60*VLOOKUP(B60,Лист1!B$1:J$999,5,0),"") ->  | J60: =IFERROR(VLOOKUP(I60,Лист1!$N$3:$Q$500,2,0),"") ->  | L60: =IFERROR(CEILING(VLOOKUP(I60,Лист1!$N$3:$Q$500,4,0)*K60,1),"") -> 
A61: =IF(D61>0,COUNT(D$16:D61,""),"") ->  | C61: =IFERROR(VLOOKUP(B61,Лист1!B$2:J$999,3,0),"") ->  | E61: =IFERROR(D61*VLOOKUP(B61,Лист1!B$1:J$999,5,0),"") ->  | J61: =IFERROR(VLOOKUP(I61,Лист1!$N$3:$Q$500,2,0),"") ->  | L61: =IFERROR(CEILING(VLOOKUP(I61,Лист1!$N$3:$Q$500,4,0)*K61,1),"") -> 
A62: =IF(D62>0,COUNT(D$16:D62,""),"") ->  | C62: =IFERROR(VLOOKUP(B62,Лист1!B$2:J$999,3,0),"") ->  | E62: =IFERROR(D62*VLOOKUP(B62,Лист1!B$1:J$999,5,0),"") ->  | J62: =IFERROR(VLOOKUP(I62,Лист1!$N$3:$Q$500,2,0),"") ->  | L62: =IFERROR(CEILING(VLOOKUP(I62,Лист1!$N$3:$Q$500,4,0)*K62,1),"") -> 
A63: =IF(D63>0,COUNT(D$16:D63,""),"") ->  | C63: =IFERROR(VLOOKUP(B63,Лист1!B$2:J$999,3,0),"") ->  | E63: =IFERROR(D63*VLOOKUP(B63,Лист1!B$1:J$999,5,0),"") ->  | J63: =IFERROR(VLOOKUP(I63,Лист1!$N$3:$Q$500,2,0),"") ->  | L63: =IFERROR(CEILING(VLOOKUP(I63,Лист1!$N$3:$Q$500,4,0)*K63,1),"") -> 
A64: =IF(D64>0,COUNT(D$16:D64,""),"") ->  | C64: =IFERROR(VLOOKUP(B64,Лист1!B$2:J$999,3,0),"") ->  | E64: =IFERROR(D64*VLOOKUP(B64,Лист1!B$1:J$999,5,0),"") ->  | J64: =IFERROR(VLOOKUP(I64,Лист1!$N$3:$Q$500,2,0),"") ->  | L64: =IFERROR(CEILING(VLOOKUP(I64,Лист1!$N$3:$Q$500,4,0)*K64,1),"") -> 
A65: =IF(D65>0,COUNT(D$16:D65,""),"") ->  | C65: =IFERROR(VLOOKUP(B65,Лист1!B$2:J$999,3,0),"") ->  | E65: =IFERROR(D65*VLOOKUP(B65,Лист1!B$1:J$999,5,0),"") ->  | J65: =IFERROR(VLOOKUP(I65,Лист1!$N$3:$Q$500,2,0),"") ->  | L65: =IFERROR(CEILING(VLOOKUP(I65,Лист1!$N$3:$Q$500,4,0)*K65,1),"") -> 
A66: =IF(D66>0,COUNT(D$16:D66,""),"") ->  | C66: =IFERROR(VLOOKUP(B66,Лист1!B$2:J$999,3,0),"") ->  | E66: =IFERROR(D66*VLOOKUP(B66,Лист1!B$1:J$999,5,0),"") ->  | J66: =IFERROR(VLOOKUP(I66,Лист1!$N$3:$Q$500,2,0),"") ->  | L66: =IFERROR(CEILING(VLOOKUP(I66,Лист1!$N$3:$Q$500,4,0)*K66,1),"") -> 
A67: =IF(D67>0,COUNT(D$16:D67,""),"") ->  | C67: =IFERROR(VLOOKUP(B67,Лист1!B$2:J$999,3,0),"") ->  | E67: =IFERROR(D67*VLOOKUP(B67,Лист1!B$1:J$999,5,0),"") ->  | J67: =IFERROR(VLOOKUP(I67,Лист1!$N$3:$Q$500,2,0),"") ->  | L67: =IFERROR(CEILING(VLOOKUP(I67,Лист1!$N$3:$Q$500,4,0)*K67,1),"") -> 
A68: =IF(D68>0,COUNT(D$16:D68,""),"") ->  | C68: =IFERROR(VLOOKUP(B68,Лист1!B$2:J$999,3,0),"") ->  | E68: =IFERROR(D68*VLOOKUP(B68,Лист1!B$1:J$999,5,0),"") ->  | J68: =IFERROR(VLOOKUP(I68,Лист1!$N$3:$Q$500,2,0),"") ->  | L68: =IFERROR(CEILING(VLOOKUP(I68,Лист1!$N$3:$Q$500,4,0)*K68,1),"") -> 
A69: =IF(D69>0,COUNT(D$16:D69,""),"") ->  | C69: =IFERROR(VLOOKUP(B69,Лист1!B$2:J$999,3,0),"") ->  | E69: =IFERROR(D69*VLOOKUP(B69,Лист1!B$1:J$999,5,0),"") ->  | J69: =IFERROR(VLOOKUP(I69,Лист1!$N$3:$Q$500,2,0),"") ->  | L69: =IFERROR(CEILING(VLOOKUP(I69,Лист1!$N$3:$Q$500,4,0)*K69,1),"") -> 
A70: =IF(D70>0,COUNT(D$16:D70,""),"") ->  | C70: =IFERROR(VLOOKUP(B70,Лист1!B$2:J$999,3,0),"") ->  | E70: =IFERROR(D70*VLOOKUP(B70,Лист1!B$1:J$999,5,0),"") ->  | J70: =IFERROR(VLOOKUP(I70,Лист1!$N$3:$Q$500,2,0),"") ->  | L70: =IFERROR(CEILING(VLOOKUP(I70,Лист1!$N$3:$Q$500,4,0)*K70,1),"") -> 
A71: =IF(D71>0,COUNT(D$16:D71,""),"") ->  | C71: =IFERROR(VLOOKUP(B71,Лист1!B$2:J$999,3,0),"") ->  | E71: =IFERROR(D71*VLOOKUP(B71,Лист1!B$1:J$999,5,0),"") ->  | J71: =IFERROR(VLOOKUP(I71,Лист1!$N$3:$Q$500,2,0),"") ->  | L71: =IFERROR(CEILING(VLOOKUP(I71,Лист1!$N$3:$Q$500,4,0)*K71,1),"") -> 
A72: =IF(D72>0,COUNT(D$16:D72,""),"") ->  | C72: =IFERROR(VLOOKUP(B72,Лист1!B$2:J$999,3,0),"") ->  | E72: =IFERROR(D72*VLOOKUP(B72,Лист1!B$1:J$999,5,0),"") ->  | J72: =IFERROR(VLOOKUP(I72,Лист1!$N$3:$Q$500,2,0),"") ->  | L72: =IFERROR(CEILING(VLOOKUP(I72,Лист1!$N$3:$Q$500,4,0)*K72,1),"") -> 
A73: =IF(D73>0,COUNT(D$16:D73,""),"") ->  | C73: =IFERROR(VLOOKUP(B73,Лист1!B$2:J$999,3,0),"") ->  | E73: =IFERROR(D73*VLOOKUP(B73,Лист1!B$1:J$999,5,0),"") ->  | J73: =IFERROR(VLOOKUP(I73,Лист1!$N$3:$Q$500,2,0),"") ->  | L73: =IFERROR(CEILING(VLOOKUP(I73,Лист1!$N$3:$Q$500,4,0)*K73,1),"") -> 
A74: =IF(D74>0,COUNT(D$16:D74,""),"") ->  | C74: =IFERROR(VLOOKUP(B74,Лист1!B$2:J$999,3,0),"") ->  | E74: =IFERROR(D74*VLOOKUP(B74,Лист1!B$1:J$999,5,0),"") ->  | J74: =IFERROR(VLOOKUP(I74,Лист1!$N$3:$Q$500,2,0),"") ->  | L74: =IFERROR(CEILING(VLOOKUP(I74,Лист1!$N$3:$Q$500,4,0)*K74,1),"") -> 
A75: =IF(D75>0,COUNT(D$16:D75,""),"") ->  | C75: =IFERROR(VLOOKUP(B75,Лист1!B$2:J$999,3,0),"") ->  | E75: =IFERROR(D75*VLOOKUP(B75,Лист1!B$1:J$999,5,0),"") ->  | J75: =IFERROR(VLOOKUP(I75,Лист1!$N$3:$Q$500,2,0),"") ->  | L75: =IFERROR(CEILING(VLOOKUP(I75,Лист1!$N$3:$Q$500,4,0)*K75,1),"") -> 
A76: =IF(D76>0,COUNT(D$16:D76,""),"") ->  | C76: =IFERROR(VLOOKUP(B76,Лист1!B$2:J$999,3,0),"") ->  | E76: =IFERROR(D76*VLOOKUP(B76,Лист1!B$1:J$999,5,0),"") ->  | J76: =IFERROR(VLOOKUP(I76,Лист1!$N$3:$Q$500,2,0),"") ->  | L76: =IFERROR(CEILING(VLOOKUP(I76,Лист1!$N$3:$Q$500,4,0)*K76,1),"") -> 
A77: =IF(D77>0,COUNT(D$16:D77,""),"") ->  | C77: =IFERROR(VLOOKUP(B77,Лист1!B$2:J$999,3,0),"") ->  | E77: =IFERROR(D77*VLOOKUP(B77,Лист1!B$1:J$999,5,0),"") ->  | J77: =IFERROR(VLOOKUP(I77,Лист1!$N$3:$Q$500,2,0),"") ->  | L77: =IFERROR(CEILING(VLOOKUP(I77,Лист1!$N$3:$Q$500,4,0)*K77,1),"") -> 
A78: =IF(D78>0,COUNT(D$16:D78,""),"") ->  | C78: =IFERROR(VLOOKUP(B78,Лист1!B$2:J$999,3,0),"") ->  | E78: =IFERROR(D78*VLOOKUP(B78,Лист1!B$1:J$999,5,0),"") ->  | J78: =IFERROR(VLOOKUP(I78,Лист1!$N$3:$Q$500,2,0),"") ->  | L78: =IFERROR(CEILING(VLOOKUP(I78,Лист1!$N$3:$Q$500,4,0)*K78,1),"") -> 
A79: =IF(D79>0,COUNT(D$16:D79,""),"") ->  | C79: =IFERROR(VLOOKUP(B79,Лист1!B$2:J$999,3,0),"") ->  | E79: =IFERROR(D79*VLOOKUP(B79,Лист1!B$1:J$999,5,0),"") ->  | J79: =IFERROR(VLOOKUP(I79,Лист1!$N$3:$Q$500,2,0),"") ->  | L79: =IFERROR(CEILING(VLOOKUP(I79,Лист1!$N$3:$Q$500,4,0)*K79,1),"") -> 
A80: =IF(D80>0,COUNT(D$16:D80,""),"") ->  | C80: =IFERROR(VLOOKUP(B80,Лист1!B$2:J$999,3,0),"") ->  | E80: =IFERROR(D80*VLOOKUP(B80,Лист1!B$1:J$999,5,0),"") ->  | J80: =IFERROR(VLOOKUP(I80,Лист1!$N$3:$Q$500,2,0),"") ->  | L80: =IFERROR(CEILING(VLOOKUP(I80,Лист1!$N$3:$Q$500,4,0)*K80,1),"") -> 
A81: =IF(D81>0,COUNT(D$16:D81,""),"") ->  | C81: =IFERROR(VLOOKUP(B81,Лист1!B$2:J$999,3,0),"") ->  | E81: =IFERROR(D81*VLOOKUP(B81,Лист1!B$1:J$999,5,0),"") ->  | G81: =IFERROR(E81*F$2,"") ->  | H81: =IFERROR(E81*F$1,"") ->  | J81: =IFERROR(VLOOKUP(I81,Лист1!$N$3:$Q$500,2,0),"") ->  | L81: =IFERROR(CEILING(VLOOKUP(I81,Лист1!$N$3:$Q$500,4,0)*K81,1),"") -> 
A82: =IF(D82>0,COUNT(D$16:D82,""),"") ->  | C82: =IFERROR(VLOOKUP(B82,Лист1!B$2:J$999,3,0),"") ->  | E82: =IFERROR(D82*VLOOKUP(B82,Лист1!B$1:J$999,5,0),"") ->  | J82: =IFERROR(VLOOKUP(I82,Лист1!$N$3:$Q$500,2,0),"") ->  | L82: =IFERROR(CEILING(VLOOKUP(I82,Лист1!$N$3:$Q$500,4,0)*K82,1),"") -> 
A83: =IF(D83>0,COUNT(D$16:D83,""),"") ->  | C83: =IFERROR(VLOOKUP(B83,Лист1!B$2:J$999,3,0),"") ->  | E83: =IFERROR(D83*VLOOKUP(B83,Лист1!B$1:J$999,5,0),"") ->  | J83: =IFERROR(VLOOKUP(I83,Лист1!$N$3:$Q$500,2,0),"") ->  | L83: =IFERROR(CEILING(VLOOKUP(I83,Лист1!$N$3:$Q$500,4,0)*K83,1),"") -> 
A84: =IF(D84>0,COUNT(D$16:D84,""),"") ->  | C84: =IFERROR(VLOOKUP(B84,Лист1!B$2:J$999,3,0),"") ->  | E84: =IFERROR(D84*VLOOKUP(B84,Лист1!B$1:J$999,5,0),"") ->  | J84: =IFERROR(VLOOKUP(I84,Лист1!$N$3:$Q$500,2,0),"") ->  | L84: =IFERROR(CEILING(VLOOKUP(I84,Лист1!$N$3:$Q$500,4,0)*K84,1),"") -> 
A85: =IF(D85>0,COUNT(D$16:D85,""),"") ->  | C85: =IFERROR(VLOOKUP(B85,Лист1!B$2:J$999,3,0),"") ->  | E85: =IFERROR(D85*VLOOKUP(B85,Лист1!B$1:J$999,5,0),"") ->  | J85: =IFERROR(VLOOKUP(I85,Лист1!$N$3:$Q$500,2,0),"") ->  | L85: =IFERROR(CEILING(VLOOKUP(I85,Лист1!$N$3:$Q$500,4,0)*K85,1),"") -> 
A86: =IF(D86>0,COUNT(D$16:D86,""),"") ->  | C86: =IFERROR(VLOOKUP(B86,Лист1!B$2:J$999,3,0),"") ->  | E86: =IFERROR(D86*VLOOKUP(B86,Лист1!B$1:J$999,5,0),"") ->  | J86: =IFERROR(VLOOKUP(I86,Лист1!$N$3:$Q$500,2,0),"") ->  | L86: =IFERROR(CEILING(VLOOKUP(I86,Лист1!$N$3:$Q$500,4,0)*K86,1),"") -> 
A87: =IF(D87>0,COUNT(D$16:D87,""),"") ->  | C87: =IFERROR(VLOOKUP(B87,Лист1!B$2:J$999,3,0),"") ->  | E87: =IFERROR(D87*VLOOKUP(B87,Лист1!B$1:J$999,5,0),"") ->  | J87: =IFERROR(VLOOKUP(I87,Лист1!$N$3:$Q$500,2,0),"") ->  | L87: =IFERROR(CEILING(VLOOKUP(I87,Лист1!$N$3:$Q$500,4,0)*K87,1),"") -> 
A88: =IF(D88>0,COUNT(D$16:D88,""),"") ->  | C88: =IFERROR(VLOOKUP(B88,Лист1!B$2:J$999,3,0),"") ->  | E88: =IFERROR(D88*VLOOKUP(B88,Лист1!B$1:J$999,5,0),"") ->  | J88: =IFERROR(VLOOKUP(I88,Лист1!$N$3:$Q$500,2,0),"") ->  | L88: =IFERROR(CEILING(VLOOKUP(I88,Лист1!$N$3:$Q$500,4,0)*K88,1),"") -> 
A89: =IF(D89>0,COUNT(D$16:D89,""),"") ->  | C89: =IFERROR(VLOOKUP(B89,Лист1!B$2:J$999,3,0),"") ->  | E89: =IFERROR(D89*VLOOKUP(B89,Лист1!B$1:J$999,5,0),"") ->  | J89: =IFERROR(VLOOKUP(I89,Лист1!$N$3:$Q$500,2,0),"") ->  | L89: =IFERROR(CEILING(VLOOKUP(I89,Лист1!$N$3:$Q$500,4,0)*K89,1),"") -> 
A90: =IF(D90>0,COUNT(D$16:D90,""),"") ->  | C90: =IFERROR(VLOOKUP(B90,Лист1!B$2:J$999,3,0),"") ->  | E90: =IFERROR(D90*VLOOKUP(B90,Лист1!B$1:J$999,5,0),"") ->  | J90: =IFERROR(VLOOKUP(I90,Лист1!$N$3:$Q$500,2,0),"") ->  | L90: =IFERROR(CEILING(VLOOKUP(I90,Лист1!$N$3:$Q$500,4,0)*K90,1),"") -> 
A91: =IF(D91>0,COUNT(D$16:D91,""),"") ->  | C91: =IFERROR(VLOOKUP(B91,Лист1!B$2:J$999,3,0),"") ->  | E91: =IFERROR(D91*VLOOKUP(B91,Лист1!B$1:J$999,5,0),"") ->  | J91: =IFERROR(VLOOKUP(I91,Лист1!$N$3:$Q$500,2,0),"") ->  | L91: =IFERROR(CEILING(VLOOKUP(I91,Лист1!$N$3:$Q$500,4,0)*K91,1),"") -> 
A92: =IF(D92>0,COUNT(D$16:D92,""),"") ->  | C92: =IFERROR(VLOOKUP(B92,Лист1!B$2:J$999,3,0),"") ->  | E92: =IFERROR(D92*VLOOKUP(B92,Лист1!B$1:J$999,5,0),"") ->  | J92: =IFERROR(VLOOKUP(I92,Лист1!$N$3:$Q$500,2,0),"") ->  | L92: =IFERROR(CEILING(VLOOKUP(I92,Лист1!$N$3:$Q$500,4,0)*K92,1),"") -> 
A93: =IF(D93>0,COUNT(D$16:D93,""),"") ->  | C93: =IFERROR(VLOOKUP(B93,Лист1!B$2:J$999,3,0),"") ->  | E93: =IFERROR(D93*VLOOKUP(B93,Лист1!B$1:J$999,5,0),"") ->  | J93: =IFERROR(VLOOKUP(I93,Лист1!$N$3:$Q$500,2,0),"") ->  | L93: =IFERROR(CEILING(VLOOKUP(I93,Лист1!$N$3:$Q$500,4,0)*K93,1),"") -> 
A94: =IF(D94>0,COUNT(D$16:D94,""),"") ->  | C94: =IFERROR(VLOOKUP(B94,Лист1!B$2:J$999,3,0),"") ->  | E94: =IFERROR(D94*VLOOKUP(B94,Лист1!B$1:J$999,5,0),"") ->  | J94: =IFERROR(VLOOKUP(I94,Лист1!$N$3:$Q$500,2,0),"") ->  | L94: =IFERROR(CEILING(VLOOKUP(I94,Лист1!$N$3:$Q$500,4,0)*K94,1),"") -> 
A95: =IF(D95>0,COUNT(D$16:D95,""),"") ->  | C95: =IFERROR(VLOOKUP(B95,Лист1!B$2:J$999,3,0),"") ->  | E95: =IFERROR(D95*VLOOKUP(B95,Лист1!B$1:J$999,5,0),"") ->  | J95: =IFERROR(VLOOKUP(I95,Лист1!$N$3:$Q$500,2,0),"") ->  | L95: =IFERROR(CEILING(VLOOKUP(I95,Лист1!$N$3:$Q$500,4,0)*K95,1),"") -> 
A96: =IF(D96>0,COUNT(D$16:D96,""),"") ->  | C96: =IFERROR(VLOOKUP(B96,Лист1!B$2:J$999,3,0),"") ->  | E96: =IFERROR(D96*VLOOKUP(B96,Лист1!B$1:J$999,5,0),"") ->  | J96: =IFERROR(VLOOKUP(I96,Лист1!$N$3:$Q$500,2,0),"") ->  | L96: =IFERROR(CEILING(VLOOKUP(I96,Лист1!$N$3:$Q$500,4,0)*K96,1),"") -> 
A97: =IF(D97>0,COUNT(D$16:D97,""),"") ->  | C97: =IFERROR(VLOOKUP(B97,Лист1!B$2:J$999,3,0),"") ->  | E97: =IFERROR(D97*VLOOKUP(B97,Лист1!B$1:J$999,5,0),"") ->  | J97: =IFERROR(VLOOKUP(I97,Лист1!$N$3:$Q$500,2,0),"") ->  | L97: =IFERROR(CEILING(VLOOKUP(I97,Лист1!$N$3:$Q$500,4,0)*K97,1),"") -> 
A98: =IF(D98>0,COUNT(D$16:D98,""),"") ->  | C98: =IFERROR(VLOOKUP(B98,Лист1!B$2:J$999,3,0),"") ->  | E98: =IFERROR(D98*VLOOKUP(B98,Лист1!B$1:J$999,5,0),"") ->  | J98: =IFERROR(VLOOKUP(I98,Лист1!$N$3:$Q$500,2,0),"") ->  | L98: =IFERROR(CEILING(VLOOKUP(I98,Лист1!$N$3:$Q$500,4,0)*K98,1),"") -> 
A99: =IF(D99>0,COUNT(D$16:D99,""),"") ->  | C99: =IFERROR(VLOOKUP(B99,Лист1!B$2:J$999,3,0),"") ->  | E99: =IFERROR(D99*VLOOKUP(B99,Лист1!B$1:J$999,5,0),"") ->  | J99: =IFERROR(VLOOKUP(I99,Лист1!$N$3:$Q$500,2,0),"") ->  | L99: =IFERROR(CEILING(VLOOKUP(I99,Лист1!$N$3:$Q$500,4,0)*K99,1),"") -> 
A100: =IF(D100>0,COUNT(D$16:D100,""),"") ->  | C100: =IFERROR(VLOOKUP(B100,Лист1!B$2:J$999,3,0),"") ->  | E100: =IFERROR(D100*VLOOKUP(B100,Лист1!B$1:J$999,5,0),"") ->  | J100: =IFERROR(VLOOKUP(I100,Лист1!$N$3:$Q$500,2,0),"") ->  | L100: =IFERROR(CEILING(VLOOKUP(I100,Лист1!$N$3:$Q$500,4,0)*K100,1),"") -> 
A101: =IF(D101>0,COUNT(D$16:D101,""),"") ->  | C101: =IFERROR(VLOOKUP(B101,Лист1!B$2:J$999,3,0),"") ->  | E101: =IFERROR(D101*VLOOKUP(B101,Лист1!B$1:J$999,5,0),"") ->  | J101: =IFERROR(VLOOKUP(I101,Лист1!$N$3:$Q$500,2,0),"") ->  | L101: =IFERROR(CEILING(VLOOKUP(I101,Лист1!$N$3:$Q$500,4,0)*K101,1),"") -> 
A102: =IF(D102>0,COUNT(D$16:D102,""),"") ->  | C102: =IFERROR(VLOOKUP(B102,Лист1!B$2:J$999,3,0),"") ->  | E102: =IFERROR(D102*VLOOKUP(B102,Лист1!B$1:J$999,5,0),"") ->  | J102: =IFERROR(VLOOKUP(I102,Лист1!$N$3:$Q$500,2,0),"") ->  | L102: =IFERROR(CEILING(VLOOKUP(I102,Лист1!$N$3:$Q$500,4,0)*K102,1),"") -> 
A103: =IF(D103>0,COUNT(D$16:D103,""),"") ->  | C103: =IFERROR(VLOOKUP(B103,Лист1!B$2:J$999,3,0),"") ->  | E103: =IFERROR(D103*VLOOKUP(B103,Лист1!B$1:J$999,5,0),"") ->  | J103: =IFERROR(VLOOKUP(I103,Лист1!$N$3:$Q$500,2,0),"") ->  | L103: =IFERROR(CEILING(VLOOKUP(I103,Лист1!$N$3:$Q$500,4,0)*K103,1),"") -> 
A104: =IF(D104>0,COUNT(D$16:D104,""),"") ->  | C104: =IFERROR(VLOOKUP(B104,Лист1!B$2:J$999,3,0),"") ->  | E104: =IFERROR(D104*VLOOKUP(B104,Лист1!B$1:J$999,5,0),"") ->  | J104: =IFERROR(VLOOKUP(I104,Лист1!$N$3:$Q$500,2,0),"") ->  | L104: =IFERROR(CEILING(VLOOKUP(I104,Лист1!$N$3:$Q$500,4,0)*K104,1),"") -> 
A105: =IF(D105>0,COUNT(D$16:D105,""),"") ->  | C105: =IFERROR(VLOOKUP(B105,Лист1!B$2:J$999,3,0),"") ->  | E105: =IFERROR(D105*VLOOKUP(B105,Лист1!B$1:J$999,5,0),"") ->  | J105: =IFERROR(VLOOKUP(I105,Лист1!$N$3:$Q$500,2,0),"") ->  | L105: =IFERROR(CEILING(VLOOKUP(I105,Лист1!$N$3:$Q$500,4,0)*K105,1),"") -> 
A106: =IF(D106>0,COUNT(D$16:D106,""),"") ->  | C106: =IFERROR(VLOOKUP(B106,Лист1!B$2:J$999,3,0),"") ->  | E106: =IFERROR(D106*VLOOKUP(B106,Лист1!B$1:J$999,5,0),"") ->  | J106: =IFERROR(VLOOKUP(I106,Лист1!$N$3:$Q$500,2,0),"") ->  | L106: =IFERROR(CEILING(VLOOKUP(I106,Лист1!$N$3:$Q$500,4,0)*K106,1),"") -> 
A107: =IF(D107>0,COUNT(D$16:D107,""),"") ->  | C107: =IFERROR(VLOOKUP(B107,Лист1!B$2:J$999,3,0),"") ->  | E107: =IFERROR(D107*VLOOKUP(B107,Лист1!B$1:J$999,5,0),"") ->  | J107: =IFERROR(VLOOKUP(I107,Лист1!$N$3:$Q$500,2,0),"") ->  | L107: =IFERROR(CEILING(VLOOKUP(I107,Лист1!$N$3:$Q$500,4,0)*K107,1),"") -> 
A108: =IF(D108>0,COUNT(D$16:D108,""),"") ->  | C108: =IFERROR(VLOOKUP(B108,Лист1!B$2:J$999,3,0),"") ->  | E108: =IFERROR(D108*VLOOKUP(B108,Лист1!B$1:J$999,5,0),"") ->  | J108: =IFERROR(VLOOKUP(I108,Лист1!$N$3:$Q$500,2,0),"") ->  | L108: =IFERROR(CEILING(VLOOKUP(I108,Лист1!$N$3:$Q$500,4,0)*K108,1),"") -> 
A109: =IF(D109>0,COUNT(D$16:D109,""),"") ->  | C109: =IFERROR(VLOOKUP(B109,Лист1!B$2:J$999,3,0),"") ->  | E109: =IFERROR(D109*VLOOKUP(B109,Лист1!B$1:J$999,5,0),"") ->  | J109: =IFERROR(VLOOKUP(I109,Лист1!$N$3:$Q$500,2,0),"") ->  | L109: =IFERROR(CEILING(VLOOKUP(I109,Лист1!$N$3:$Q$500,4,0)*K109,1),"") -> 
A110: =IF(D110>0,COUNT(D$16:D110,""),"") ->  | C110: =IFERROR(VLOOKUP(B110,Лист1!B$2:J$999,3,0),"") ->  | E110: =IFERROR(D110*VLOOKUP(B110,Лист1!B$1:J$999,5,0),"") ->  | J110: =IFERROR(VLOOKUP(I110,Лист1!$N$3:$Q$500,2,0),"") ->  | L110: =IFERROR(CEILING(VLOOKUP(I110,Лист1!$N$3:$Q$500,4,0)*K110,1),"") -> 
A111: =IF(D111>0,COUNT(D$16:D111,""),"") ->  | C111: =IFERROR(VLOOKUP(B111,Лист1!B$2:J$999,3,0),"") ->  | E111: =IFERROR(D111*VLOOKUP(B111,Лист1!B$1:J$999,5,0),"") ->  | J111: =IFERROR(VLOOKUP(I111,Лист1!$N$3:$Q$500,2,0),"") ->  | L111: =IFERROR(CEILING(VLOOKUP(I111,Лист1!$N$3:$Q$500,4,0)*K111,1),"") -> 
A112: =IF(D112>0,COUNT(D$16:D112,""),"") ->  | C112: =IFERROR(VLOOKUP(B112,Лист1!B$2:J$999,3,0),"") ->  | E112: =IFERROR(D112*VLOOKUP(B112,Лист1!B$1:J$999,5,0),"") ->  | J112: =IFERROR(VLOOKUP(I112,Лист1!$N$3:$Q$500,2,0),"") ->  | L112: =IFERROR(CEILING(VLOOKUP(I112,Лист1!$N$3:$Q$500,4,0)*K112,1),"") -> 
A113: =IF(D113>0,COUNT(D$16:D113,""),"") ->  | C113: =IFERROR(VLOOKUP(B113,Лист1!B$2:J$999,3,0),"") ->  | E113: =IFERROR(D113*VLOOKUP(B113,Лист1!B$1:J$999,5,0),"") ->  | J113: =IFERROR(VLOOKUP(I113,Лист1!$N$3:$Q$500,2,0),"") ->  | L113: =IFERROR(CEILING(VLOOKUP(I113,Лист1!$N$3:$Q$500,4,0)*K113,1),"") -> 
A114: =IF(D114>0,COUNT(D$16:D114,""),"") ->  | C114: =IFERROR(VLOOKUP(B114,Лист1!B$2:J$999,3,0),"") ->  | E114: =IFERROR(D114*VLOOKUP(B114,Лист1!B$1:J$999,5,0),"") ->  | J114: =IFERROR(VLOOKUP(I114,Лист1!$N$3:$Q$500,2,0),"") ->  | L114: =IFERROR(CEILING(VLOOKUP(I114,Лист1!$N$3:$Q$500,4,0)*K114,1),"") -> 
A115: =IF(D115>0,COUNT(D$16:D115,""),"") ->  | C115: =IFERROR(VLOOKUP(B115,Лист1!B$2:J$999,3,0),"") ->  | E115: =IFERROR(D115*VLOOKUP(B115,Лист1!B$1:J$999,5,0),"") ->  | J115: =IFERROR(VLOOKUP(I115,Лист1!$N$3:$Q$500,2,0),"") ->  | L115: =IFERROR(CEILING(VLOOKUP(I115,Лист1!$N$3:$Q$500,4,0)*K115,1),"") -> 
A116: =IF(D116>0,COUNT(D$16:D116,""),"") ->  | C116: =IFERROR(VLOOKUP(B116,Лист1!B$2:J$999,3,0),"") ->  | E116: =IFERROR(D116*VLOOKUP(B116,Лист1!B$1:J$999,5,0),"") ->  | J116: =IFERROR(VLOOKUP(I116,Лист1!$N$3:$Q$500,2,0),"") ->  | L116: =IFERROR(CEILING(VLOOKUP(I116,Лист1!$N$3:$Q$500,4,0)*K116,1),"") -> 
A117: =IF(D117>0,COUNT(D$16:D117,""),"") ->  | C117: =IFERROR(VLOOKUP(B117,Лист1!B$2:J$999,3,0),"") ->  | E117: =IFERROR(D117*VLOOKUP(B117,Лист1!B$1:J$999,5,0),"") ->  | J117: =IFERROR(VLOOKUP(I117,Лист1!$N$3:$Q$500,2,0),"") ->  | L117: =IFERROR(CEILING(VLOOKUP(I117,Лист1!$N$3:$Q$500,4,0)*K117,1),"") -> 
A118: =IF(D118>0,COUNT(D$16:D118,""),"") ->  | C118: =IFERROR(VLOOKUP(B118,Лист1!B$2:J$999,3,0),"") ->  | E118: =IFERROR(D118*VLOOKUP(B118,Лист1!B$1:J$999,5,0),"") ->  | J118: =IFERROR(VLOOKUP(I118,Лист1!$N$3:$Q$500,2,0),"") ->  | L118: =IFERROR(CEILING(VLOOKUP(I118,Лист1!$N$3:$Q$500,4,0)*K118,1),"") -> 
A119: =IF(D119>0,COUNT(D$16:D119,""),"") ->  | C119: =IFERROR(VLOOKUP(B119,Лист1!B$2:J$999,3,0),"") ->  | E119: =IFERROR(D119*VLOOKUP(B119,Лист1!B$1:J$999,5,0),"") ->  | J119: =IFERROR(VLOOKUP(I119,Лист1!$N$3:$Q$500,2,0),"") ->  | L119: =IFERROR(CEILING(VLOOKUP(I119,Лист1!$N$3:$Q$500,4,0)*K119,1),"") -> 
A120: =IF(D120>0,COUNT(D$16:D120,""),"") ->  | C120: =IFERROR(VLOOKUP(B120,Лист1!B$2:J$999,3,0),"") ->  | E120: =IFERROR(D120*VLOOKUP(B120,Лист1!B$1:J$999,5,0),"") ->  | J120: =IFERROR(VLOOKUP(I120,Лист1!$N$3:$Q$500,2,0),"") ->  | L120: =IFERROR(CEILING(VLOOKUP(I120,Лист1!$N$3:$Q$500,4,0)*K120,1),"") -> 
A121: =IF(D121>0,COUNT(D$16:D121,""),"") ->  | C121: =IFERROR(VLOOKUP(B121,Лист1!B$2:J$999,3,0),"") ->  | E121: =IFERROR(D121*VLOOKUP(B121,Лист1!B$1:J$999,5,0),"") ->  | J121: =IFERROR(VLOOKUP(I121,Лист1!$N$3:$Q$500,2,0),"") ->  | L121: =IFERROR(CEILING(VLOOKUP(I121,Лист1!$N$3:$Q$500,4,0)*K121,1),"") -> 
A122: =IF(D122>0,COUNT(D$16:D122,""),"") ->  | C122: =IFERROR(VLOOKUP(B122,Лист1!B$2:J$999,3,0),"") ->  | E122: =IFERROR(D122*VLOOKUP(B122,Лист1!B$1:J$999,5,0),"") ->  | J122: =IFERROR(VLOOKUP(I122,Лист1!$N$3:$Q$500,2,0),"") ->  | L122: =IFERROR(CEILING(VLOOKUP(I122,Лист1!$N$3:$Q$500,4,0)*K122,1),"") -> 
A123: =IF(D123>0,COUNT(D$16:D123,""),"") ->  | C123: =IFERROR(VLOOKUP(B123,Лист1!B$2:J$999,3,0),"") ->  | E123: =IFERROR(D123*VLOOKUP(B123,Лист1!B$1:J$999,5,0),"") ->  | J123: =IFERROR(VLOOKUP(I123,Лист1!$N$3:$Q$500,2,0),"") ->  | L123: =IFERROR(CEILING(VLOOKUP(I123,Лист1!$N$3:$Q$500,4,0)*K123,1),"") -> 
A124: =IF(D124>0,COUNT(D$16:D124,""),"") ->  | C124: =IFERROR(VLOOKUP(B124,Лист1!B$2:J$999,3,0),"") ->  | E124: =IFERROR(D124*VLOOKUP(B124,Лист1!B$1:J$999,5,0),"") ->  | J124: =IFERROR(VLOOKUP(I124,Лист1!$N$3:$Q$500,2,0),"") ->  | L124: =IFERROR(CEILING(VLOOKUP(I124,Лист1!$N$3:$Q$500,4,0)*K124,1),"") -> 
A125: =IF(D125>0,COUNT(D$16:D125,""),"") ->  | C125: =IFERROR(VLOOKUP(B125,Лист1!B$2:J$999,3,0),"") ->  | E125: =IFERROR(D125*VLOOKUP(B125,Лист1!B$1:J$999,5,0),"") ->  | J125: =IFERROR(VLOOKUP(I125,Лист1!$N$3:$Q$500,2,0),"") ->  | L125: =IFERROR(CEILING(VLOOKUP(I125,Лист1!$N$3:$Q$500,4,0)*K125,1),"") -> 
A126: =IF(D126>0,COUNT(D$16:D126,""),"") ->  | C126: =IFERROR(VLOOKUP(B126,Лист1!B$2:J$999,3,0),"") ->  | E126: =IFERROR(D126*VLOOKUP(B126,Лист1!B$1:J$999,5,0),"") ->  | J126: =IFERROR(VLOOKUP(I126,Лист1!$N$3:$Q$500,2,0),"") ->  | L126: =IFERROR(CEILING(VLOOKUP(I126,Лист1!$N$3:$Q$500,4,0)*K126,1),"") -> 
A127: =IF(D127>0,COUNT(D$16:D127,""),"") ->  | C127: =IFERROR(VLOOKUP(B127,Лист1!B$2:J$999,3,0),"") ->  | E127: =IFERROR(D127*VLOOKUP(B127,Лист1!B$1:J$999,5,0),"") ->  | J127: =IFERROR(VLOOKUP(I127,Лист1!$N$3:$Q$500,2,0),"") ->  | L127: =IFERROR(CEILING(VLOOKUP(I127,Лист1!$N$3:$Q$500,4,0)*K127,1),"") -> 
A128: =IF(D128>0,COUNT(D$16:D128,""),"") ->  | C128: =IFERROR(VLOOKUP(B128,Лист1!B$2:J$999,3,0),"") ->  | E128: =IFERROR(D128*VLOOKUP(B128,Лист1!B$1:J$999,5,0),"") ->  | J128: =IFERROR(VLOOKUP(I128,Лист1!$N$3:$Q$500,2,0),"") ->  | L128: =IFERROR(CEILING(VLOOKUP(I128,Лист1!$N$3:$Q$500,4,0)*K128,1),"") -> 
A129: =IF(D129>0,COUNT(D$16:D129,""),"") ->  | C129: =IFERROR(VLOOKUP(B129,Лист1!B$2:J$999,3,0),"") ->  | E129: =IFERROR(D129*VLOOKUP(B129,Лист1!B$1:J$999,5,0),"") ->  | J129: =IFERROR(VLOOKUP(I129,Лист1!$N$3:$Q$500,2,0),"") ->  | L129: =IFERROR(CEILING(VLOOKUP(I129,Лист1!$N$3:$Q$500,4,0)*K129,1),"") -> 
A130: =IF(D130>0,COUNT(D$16:D130,""),"") ->  | C130: =IFERROR(VLOOKUP(B130,Лист1!B$2:J$999,3,0),"") ->  | E130: =IFERROR(D130*VLOOKUP(B130,Лист1!B$1:J$999,5,0),"") ->  | J130: =IFERROR(VLOOKUP(I130,Лист1!$N$3:$Q$500,2,0),"") ->  | L130: =IFERROR(CEILING(VLOOKUP(I130,Лист1!$N$3:$Q$500,4,0)*K130,1),"") -> 
A131: =IF(D131>0,COUNT(D$16:D131,""),"") ->  | C131: =IFERROR(VLOOKUP(B131,Лист1!B$2:J$999,3,0),"") ->  | E131: =IFERROR(D131*VLOOKUP(B131,Лист1!B$1:J$999,5,0),"") ->  | J131: =IFERROR(VLOOKUP(I131,Лист1!$N$3:$Q$500,2,0),"") ->  | L131: =IFERROR(CEILING(VLOOKUP(I131,Лист1!$N$3:$Q$500,4,0)*K131,1),"") -> 
A132: =IF(D132>0,COUNT(D$16:D132,""),"") ->  | C132: =IFERROR(VLOOKUP(B132,Лист1!B$2:J$999,3,0),"") ->  | E132: =IFERROR(D132*VLOOKUP(B132,Лист1!B$1:J$999,5,0),"") ->  | J132: =IFERROR(VLOOKUP(I132,Лист1!$N$3:$Q$500,2,0),"") ->  | L132: =IFERROR(CEILING(VLOOKUP(I132,Лист1!$N$3:$Q$500,4,0)*K132,1),"") -> 
A133: =IF(D133>0,COUNT(D$16:D133,""),"") ->  | C133: =IFERROR(VLOOKUP(B133,Лист1!B$2:J$999,3,0),"") ->  | E133: =IFERROR(D133*VLOOKUP(B133,Лист1!B$1:J$999,5,0),"") ->  | J133: =IFERROR(VLOOKUP(I133,Лист1!$N$3:$Q$500,2,0),"") ->  | L133: =IFERROR(CEILING(VLOOKUP(I133,Лист1!$N$3:$Q$500,4,0)*K133,1),"") -> 
A134: =IF(D134>0,COUNT(D$16:D134,""),"") ->  | C134: =IFERROR(VLOOKUP(B134,Лист1!B$2:J$999,3,0),"") ->  | E134: =IFERROR(D134*VLOOKUP(B134,Лист1!B$1:J$999,5,0),"") ->  | J134: =IFERROR(VLOOKUP(I134,Лист1!$N$3:$Q$500,2,0),"") ->  | L134: =IFERROR(CEILING(VLOOKUP(I134,Лист1!$N$3:$Q$500,4,0)*K134,1),"") -> 
A135: =IF(D135>0,COUNT(D$16:D135,""),"") ->  | C135: =IFERROR(VLOOKUP(B135,Лист1!B$2:J$999,3,0),"") ->  | E135: =IFERROR(D135*VLOOKUP(B135,Лист1!B$1:J$999,5,0),"") ->  | J135: =IFERROR(VLOOKUP(I135,Лист1!$N$3:$Q$500,2,0),"") ->  | L135: =IFERROR(CEILING(VLOOKUP(I135,Лист1!$N$3:$Q$500,4,0)*K135,1),"") -> 
A136: =IF(D136>0,COUNT(D$16:D136,""),"") ->  | C136: =IFERROR(VLOOKUP(B136,Лист1!B$2:J$999,3,0),"") ->  | E136: =IFERROR(D136*VLOOKUP(B136,Лист1!B$1:J$999,5,0),"") ->  | J136: =IFERROR(VLOOKUP(I136,Лист1!$N$3:$Q$500,2,0),"") ->  | L136: =IFERROR(CEILING(VLOOKUP(I136,Лист1!$N$3:$Q$500,4,0)*K136,1),"") -> 
A137: =IF(D137>0,COUNT(D$16:D137,""),"") ->  | C137: =IFERROR(VLOOKUP(B137,Лист1!B$2:J$999,3,0),"") ->  | E137: =IFERROR(D137*VLOOKUP(B137,Лист1!B$1:J$999,5,0),"") ->  | J137: =IFERROR(VLOOKUP(I137,Лист1!$N$3:$Q$500,2,0),"") ->  | L137: =IFERROR(CEILING(VLOOKUP(I137,Лист1!$N$3:$Q$500,4,0)*K137,1),"") -> 
A138: =IF(D138>0,COUNT(D$16:D138,""),"") ->  | C138: =IFERROR(VLOOKUP(B138,Лист1!B$2:J$999,3,0),"") ->  | E138: =IFERROR(D138*VLOOKUP(B138,Лист1!B$1:J$999,5,0),"") ->  | J138: =IFERROR(VLOOKUP(I138,Лист1!$N$3:$Q$500,2,0),"") ->  | L138: =IFERROR(CEILING(VLOOKUP(I138,Лист1!$N$3:$Q$500,4,0)*K138,1),"") -> 
A139: =IF(D139>0,COUNT(D$16:D139,""),"") ->  | C139: =IFERROR(VLOOKUP(B139,Лист1!B$2:J$999,3,0),"") ->  | E139: =IFERROR(D139*VLOOKUP(B139,Лист1!B$1:J$999,5,0),"") ->  | J139: =IFERROR(VLOOKUP(I139,Лист1!$N$3:$Q$500,2,0),"") ->  | L139: =IFERROR(CEILING(VLOOKUP(I139,Лист1!$N$3:$Q$500,4,0)*K139,1),"") -> 
A140: =IF(D140>0,COUNT(D$16:D140,""),"") ->  | C140: =IFERROR(VLOOKUP(B140,Лист1!B$2:J$999,3,0),"") ->  | E140: =IFERROR(D140*VLOOKUP(B140,Лист1!B$1:J$999,5,0),"") ->  | J140: =IFERROR(VLOOKUP(I140,Лист1!$N$3:$Q$500,2,0),"") ->  | L140: =IFERROR(CEILING(VLOOKUP(I140,Лист1!$N$3:$Q$500,4,0)*K140,1),"") -> 
A141: =IF(D141>0,COUNT(D$16:D141,""),"") ->  | C141: =IFERROR(VLOOKUP(B141,Лист1!B$2:J$999,3,0),"") ->  | E141: =IFERROR(D141*VLOOKUP(B141,Лист1!B$1:J$999,5,0),"") ->  | J141: =IFERROR(VLOOKUP(I141,Лист1!$N$3:$Q$500,2,0),"") ->  | L141: =IFERROR(CEILING(VLOOKUP(I141,Лист1!$N$3:$Q$500,4,0)*K141,1),"") -> 
A142: =IF(D142>0,COUNT(D$16:D142,""),"") ->  | C142: =IFERROR(VLOOKUP(B142,Лист1!B$2:J$999,3,0),"") ->  | E142: =IFERROR(D142*VLOOKUP(B142,Лист1!B$1:J$999,5,0),"") ->  | J142: =IFERROR(VLOOKUP(I142,Лист1!$N$3:$Q$500,2,0),"") ->  | L142: =IFERROR(CEILING(VLOOKUP(I142,Лист1!$N$3:$Q$500,4,0)*K142,1),"") -> 
A143: =IF(D143>0,COUNT(D$16:D143,""),"") ->  | C143: =IFERROR(VLOOKUP(B143,Лист1!B$2:J$999,3,0),"") ->  | E143: =IFERROR(D143*VLOOKUP(B143,Лист1!B$1:J$999,5,0),"") ->  | J143: =IFERROR(VLOOKUP(I143,Лист1!$N$3:$Q$500,2,0),"") ->  | L143: =IFERROR(CEILING(VLOOKUP(I143,Лист1!$N$3:$Q$500,4,0)*K143,1),"") -> 
A144: =IF(D144>0,COUNT(D$16:D144,""),"") ->  | C144: =IFERROR(VLOOKUP(B144,Лист1!B$2:J$999,3,0),"") ->  | E144: =IFERROR(D144*VLOOKUP(B144,Лист1!B$1:J$999,5,0),"") ->  | J144: =IFERROR(VLOOKUP(I144,Лист1!$N$3:$Q$500,2,0),"") ->  | L144: =IFERROR(CEILING(VLOOKUP(I144,Лист1!$N$3:$Q$500,4,0)*K144,1),"") -> 
A145: =IF(D145>0,COUNT(D$16:D145,""),"") ->  | C145: =IFERROR(VLOOKUP(B145,Лист1!B$2:J$999,3,0),"") ->  | E145: =IFERROR(D145*VLOOKUP(B145,Лист1!B$1:J$999,5,0),"") ->  | G145: =IFERROR(E145*F$2,"") ->  | H145: =IFERROR(E145*F$1,"") ->  | J145: =IFERROR(VLOOKUP(I145,Лист1!$N$3:$Q$500,2,0),"") ->  | L145: =IFERROR(CEILING(VLOOKUP(I145,Лист1!$N$3:$Q$500,4,0)*K145,1),"") -> 
A146: =IF(D146>0,COUNT(D$16:D146,""),"") ->  | C146: =IFERROR(VLOOKUP(B146,Лист1!B$2:J$999,3,0),"") ->  | E146: =IFERROR(D146*VLOOKUP(B146,Лист1!B$1:J$999,5,0),"") ->  | J146: =IFERROR(VLOOKUP(I146,Лист1!$N$3:$Q$500,2,0),"") ->  | L146: =IFERROR(CEILING(VLOOKUP(I146,Лист1!$N$3:$Q$500,4,0)*K146,1),"") -> 
A147: =IF(D147>0,COUNT(D$16:D147,""),"") ->  | C147: =IFERROR(VLOOKUP(B147,Лист1!B$2:J$999,3,0),"") ->  | E147: =IFERROR(D147*VLOOKUP(B147,Лист1!B$1:J$999,5,0),"") ->  | J147: =IFERROR(VLOOKUP(I147,Лист1!$N$3:$Q$500,2,0),"") ->  | L147: =IFERROR(CEILING(VLOOKUP(I147,Лист1!$N$3:$Q$500,4,0)*K147,1),"") -> 
A148: =IF(D148>0,COUNT(D$16:D148,""),"") ->  | C148: =IFERROR(VLOOKUP(B148,Лист1!B$2:J$999,3,0),"") ->  | E148: =IFERROR(D148*VLOOKUP(B148,Лист1!B$1:J$999,5,0),"") ->  | J148: =IFERROR(VLOOKUP(I148,Лист1!$N$3:$Q$500,2,0),"") ->  | L148: =IFERROR(CEILING(VLOOKUP(I148,Лист1!$N$3:$Q$500,4,0)*K148,1),"") -> 
A149: =IF(D149>0,COUNT(D$16:D149,""),"") ->  | C149: =IFERROR(VLOOKUP(B149,Лист1!B$2:J$999,3,0),"") ->  | E149: =IFERROR(D149*VLOOKUP(B149,Лист1!B$1:J$999,5,0),"") ->  | J149: =IFERROR(VLOOKUP(I149,Лист1!$N$3:$Q$500,2,0),"") ->  | L149: =IFERROR(CEILING(VLOOKUP(I149,Лист1!$N$3:$Q$500,4,0)*K149,1),"") -> 
A150: =IF(D150>0,COUNT(D$16:D150,""),"") ->  | C150: =IFERROR(VLOOKUP(B150,Лист1!B$2:J$999,3,0),"") ->  | E150: =IFERROR(D150*VLOOKUP(B150,Лист1!B$1:J$999,5,0),"") ->  | J150: =IFERROR(VLOOKUP(I150,Лист1!$N$3:$Q$500,2,0),"") ->  | L150: =IFERROR(CEILING(VLOOKUP(I150,Лист1!$N$3:$Q$500,4,0)*K150,1),"") -> 
A151: =IF(D151>0,COUNT(D$16:D151,""),"") ->  | C151: =IFERROR(VLOOKUP(B151,Лист1!B$2:J$999,3,0),"") ->  | E151: =IFERROR(D151*VLOOKUP(B151,Лист1!B$1:J$999,5,0),"") ->  | J151: =IFERROR(VLOOKUP(I151,Лист1!$N$3:$Q$500,2,0),"") ->  | L151: =IFERROR(CEILING(VLOOKUP(I151,Лист1!$N$3:$Q$500,4,0)*K151,1),"") -> 
A152: =IF(D152>0,COUNT(D$16:D152,""),"") ->  | C152: =IFERROR(VLOOKUP(B152,Лист1!B$2:J$999,3,0),"") ->  | E152: =IFERROR(D152*VLOOKUP(B152,Лист1!B$1:J$999,5,0),"") ->  | J152: =IFERROR(VLOOKUP(I152,Лист1!$N$3:$Q$500,2,0),"") ->  | L152: =IFERROR(CEILING(VLOOKUP(I152,Лист1!$N$3:$Q$500,4,0)*K152,1),"") -> 
A153: =IF(D153>0,COUNT(D$16:D153,""),"") ->  | C153: =IFERROR(VLOOKUP(B153,Лист1!B$2:J$999,3,0),"") ->  | E153: =IFERROR(D153*VLOOKUP(B153,Лист1!B$1:J$999,5,0),"") ->  | J153: =IFERROR(VLOOKUP(I153,Лист1!$N$3:$Q$500,2,0),"") ->  | L153: =IFERROR(CEILING(VLOOKUP(I153,Лист1!$N$3:$Q$500,4,0)*K153,1),"") -> 
A154: =IF(D154>0,COUNT(D$16:D154,""),"") ->  | C154: =IFERROR(VLOOKUP(B154,Лист1!B$2:J$999,3,0),"") ->  | E154: =IFERROR(D154*VLOOKUP(B154,Лист1!B$1:J$999,5,0),"") ->  | J154: =IFERROR(VLOOKUP(I154,Лист1!$N$3:$Q$500,2,0),"") ->  | L154: =IFERROR(CEILING(VLOOKUP(I154,Лист1!$N$3:$Q$500,4,0)*K154,1),"") -> 
A155: =IF(D155>0,COUNT(D$16:D155,""),"") ->  | C155: =IFERROR(VLOOKUP(B155,Лист1!B$2:J$999,3,0),"") ->  | E155: =IFERROR(D155*VLOOKUP(B155,Лист1!B$1:J$999,5,0),"") ->  | J155: =IFERROR(VLOOKUP(I155,Лист1!$N$3:$Q$500,2,0),"") ->  | L155: =IFERROR(CEILING(VLOOKUP(I155,Лист1!$N$3:$Q$500,4,0)*K155,1),"") -> 
A156: =IF(D156>0,COUNT(D$16:D156,""),"") ->  | C156: =IFERROR(VLOOKUP(B156,Лист1!B$2:J$999,3,0),"") ->  | E156: =IFERROR(D156*VLOOKUP(B156,Лист1!B$1:J$999,5,0),"") ->  | J156: =IFERROR(VLOOKUP(I156,Лист1!$N$3:$Q$500,2,0),"") ->  | L156: =IFERROR(CEILING(VLOOKUP(I156,Лист1!$N$3:$Q$500,4,0)*K156,1),"") -> 
A157: =IF(D157>0,COUNT(D$16:D157,""),"") ->  | C157: =IFERROR(VLOOKUP(B157,Лист1!B$2:J$999,3,0),"") ->  | E157: =IFERROR(D157*VLOOKUP(B157,Лист1!B$1:J$999,5,0),"") ->  | J157: =IFERROR(VLOOKUP(I157,Лист1!$N$3:$Q$500,2,0),"") ->  | L157: =IFERROR(CEILING(VLOOKUP(I157,Лист1!$N$3:$Q$500,4,0)*K157,1),"") -> 
A158: =IF(D158>0,COUNT(D$16:D158,""),"") ->  | C158: =IFERROR(VLOOKUP(B158,Лист1!B$2:J$999,3,0),"") ->  | E158: =IFERROR(D158*VLOOKUP(B158,Лист1!B$1:J$999,5,0),"") ->  | J158: =IFERROR(VLOOKUP(I158,Лист1!$N$3:$Q$500,2,0),"") ->  | L158: =IFERROR(CEILING(VLOOKUP(I158,Лист1!$N$3:$Q$500,4,0)*K158,1),"") -> 
A159: =IF(D159>0,COUNT(D$16:D159,""),"") ->  | C159: =IFERROR(VLOOKUP(B159,Лист1!B$2:J$999,3,0),"") ->  | E159: =IFERROR(D159*VLOOKUP(B159,Лист1!B$1:J$999,5,0),"") ->  | J159: =IFERROR(VLOOKUP(I159,Лист1!$N$3:$Q$500,2,0),"") ->  | L159: =IFERROR(CEILING(VLOOKUP(I159,Лист1!$N$3:$Q$500,4,0)*K159,1),"") -> 
A160: =IF(D160>0,COUNT(D$16:D160,""),"") ->  | C160: =IFERROR(VLOOKUP(B160,Лист1!B$2:J$999,3,0),"") ->  | E160: =IFERROR(D160*VLOOKUP(B160,Лист1!B$1:J$999,5,0),"") ->  | J160: =IFERROR(VLOOKUP(I160,Лист1!$N$3:$Q$500,2,0),"") ->  | L160: =IFERROR(CEILING(VLOOKUP(I160,Лист1!$N$3:$Q$500,4,0)*K160,1),"") -> 
A161: =IF(D161>0,COUNT(D$16:D161,""),"") ->  | C161: =IFERROR(VLOOKUP(B161,Лист1!B$2:J$999,3,0),"") ->  | E161: =IFERROR(D161*VLOOKUP(B161,Лист1!B$1:J$999,5,0),"") ->  | J161: =IFERROR(VLOOKUP(I161,Лист1!$N$3:$Q$500,2,0),"") ->  | L161: =IFERROR(CEILING(VLOOKUP(I161,Лист1!$N$3:$Q$500,4,0)*K161,1),"") -> 
A162: =IF(D162>0,COUNT(D$16:D162,""),"") ->  | C162: =IFERROR(VLOOKUP(B162,Лист1!B$2:J$999,3,0),"") ->  | E162: =IFERROR(D162*VLOOKUP(B162,Лист1!B$1:J$999,5,0),"") ->  | J162: =IFERROR(VLOOKUP(I162,Лист1!$N$3:$Q$500,2,0),"") ->  | L162: =IFERROR(CEILING(VLOOKUP(I162,Лист1!$N$3:$Q$500,4,0)*K162,1),"") -> 
A163: =IF(D163>0,COUNT(D$16:D163,""),"") ->  | C163: =IFERROR(VLOOKUP(B163,Лист1!B$2:J$999,3,0),"") ->  | E163: =IFERROR(D163*VLOOKUP(B163,Лист1!B$1:J$999,5,0),"") ->  | J163: =IFERROR(VLOOKUP(I163,Лист1!$N$3:$Q$500,2,0),"") ->  | L163: =IFERROR(CEILING(VLOOKUP(I163,Лист1!$N$3:$Q$500,4,0)*K163,1),"") -> 
A164: =IF(D164>0,COUNT(D$16:D164,""),"") ->  | C164: =IFERROR(VLOOKUP(B164,Лист1!B$2:J$999,3,0),"") ->  | E164: =IFERROR(D164*VLOOKUP(B164,Лист1!B$1:J$999,5,0),"") ->  | J164: =IFERROR(VLOOKUP(I164,Лист1!$N$3:$Q$500,2,0),"") ->  | L164: =IFERROR(CEILING(VLOOKUP(I164,Лист1!$N$3:$Q$500,4,0)*K164,1),"") -> 
A165: =IF(D165>0,COUNT(D$16:D165,""),"") ->  | C165: =IFERROR(VLOOKUP(B165,Лист1!B$2:J$999,3,0),"") ->  | E165: =IFERROR(D165*VLOOKUP(B165,Лист1!B$1:J$999,5,0),"") ->  | J165: =IFERROR(VLOOKUP(I165,Лист1!$N$3:$Q$500,2,0),"") ->  | L165: =IFERROR(CEILING(VLOOKUP(I165,Лист1!$N$3:$Q$500,4,0)*K165,1),"") -> 
A166: =IF(D166>0,COUNT(D$16:D166,""),"") ->  | C166: =IFERROR(VLOOKUP(B166,Лист1!B$2:J$999,3,0),"") ->  | E166: =IFERROR(D166*VLOOKUP(B166,Лист1!B$1:J$999,5,0),"") ->  | J166: =IFERROR(VLOOKUP(I166,Лист1!$N$3:$Q$500,2,0),"") ->  | L166: =IFERROR(CEILING(VLOOKUP(I166,Лист1!$N$3:$Q$500,4,0)*K166,1),"") -> 
A167: =IF(D167>0,COUNT(D$16:D167,""),"") ->  | C167: =IFERROR(VLOOKUP(B167,Лист1!B$2:J$999,3,0),"") ->  | E167: =IFERROR(D167*VLOOKUP(B167,Лист1!B$1:J$999,5,0),"") ->  | J167: =IFERROR(VLOOKUP(I167,Лист1!$N$3:$Q$500,2,0),"") ->  | L167: =IFERROR(CEILING(VLOOKUP(I167,Лист1!$N$3:$Q$500,4,0)*K167,1),"") -> 
A168: =IF(D168>0,COUNT(D$16:D168,""),"") ->  | C168: =IFERROR(VLOOKUP(B168,Лист1!B$2:J$999,3,0),"") ->  | E168: =IFERROR(D168*VLOOKUP(B168,Лист1!B$1:J$999,5,0),"") ->  | J168: =IFERROR(VLOOKUP(I168,Лист1!$N$3:$Q$500,2,0),"") ->  | L168: =IFERROR(CEILING(VLOOKUP(I168,Лист1!$N$3:$Q$500,4,0)*K168,1),"") -> 
A169: =IF(D169>0,COUNT(D$16:D169,""),"") ->  | C169: =IFERROR(VLOOKUP(B169,Лист1!B$2:J$999,3,0),"") ->  | E169: =IFERROR(D169*VLOOKUP(B169,Лист1!B$1:J$999,5,0),"") ->  | J169: =IFERROR(VLOOKUP(I169,Лист1!$N$3:$Q$500,2,0),"") ->  | L169: =IFERROR(CEILING(VLOOKUP(I169,Лист1!$N$3:$Q$500,4,0)*K169,1),"") -> 
A170: =IF(D170>0,COUNT(D$16:D170,""),"") ->  | C170: =IFERROR(VLOOKUP(B170,Лист1!B$2:J$999,3,0),"") ->  | E170: =IFERROR(D170*VLOOKUP(B170,Лист1!B$1:J$999,5,0),"") ->  | J170: =IFERROR(VLOOKUP(I170,Лист1!$N$3:$Q$500,2,0),"") ->  | L170: =IFERROR(CEILING(VLOOKUP(I170,Лист1!$N$3:$Q$500,4,0)*K170,1),"") -> 
A171: =IF(D171>0,COUNT(D$16:D171,""),"") ->  | C171: =IFERROR(VLOOKUP(B171,Лист1!B$2:J$999,3,0),"") ->  | E171: =IFERROR(D171*VLOOKUP(B171,Лист1!B$1:J$999,5,0),"") ->  | J171: =IFERROR(VLOOKUP(I171,Лист1!$N$3:$Q$500,2,0),"") ->  | L171: =IFERROR(CEILING(VLOOKUP(I171,Лист1!$N$3:$Q$500,4,0)*K171,1),"") -> 
A172: =IF(D172>0,COUNT(D$16:D172,""),"") ->  | C172: =IFERROR(VLOOKUP(B172,Лист1!B$2:J$999,3,0),"") ->  | E172: =IFERROR(D172*VLOOKUP(B172,Лист1!B$1:J$999,5,0),"") ->  | J172: =IFERROR(VLOOKUP(I172,Лист1!$N$3:$Q$500,2,0),"") ->  | L172: =IFERROR(CEILING(VLOOKUP(I172,Лист1!$N$3:$Q$500,4,0)*K172,1),"") -> 
A173: =IF(D173>0,COUNT(D$16:D173,""),"") ->  | C173: =IFERROR(VLOOKUP(B173,Лист1!B$2:J$999,3,0),"") ->  | E173: =IFERROR(D173*VLOOKUP(B173,Лист1!B$1:J$999,5,0),"") ->  | J173: =IFERROR(VLOOKUP(I173,Лист1!$N$3:$Q$500,2,0),"") ->  | L173: =IFERROR(CEILING(VLOOKUP(I173,Лист1!$N$3:$Q$500,4,0)*K173,1),"") -> 
A174: =IF(D174>0,COUNT(D$16:D174,""),"") ->  | C174: =IFERROR(VLOOKUP(B174,Лист1!B$2:J$999,3,0),"") ->  | E174: =IFERROR(D174*VLOOKUP(B174,Лист1!B$1:J$999,5,0),"") ->  | J174: =IFERROR(VLOOKUP(I174,Лист1!$N$3:$Q$500,2,0),"") ->  | L174: =IFERROR(CEILING(VLOOKUP(I174,Лист1!$N$3:$Q$500,4,0)*K174,1),"") -> 
A175: =IF(D175>0,COUNT(D$16:D175,""),"") ->  | C175: =IFERROR(VLOOKUP(B175,Лист1!B$2:J$999,3,0),"") ->  | E175: =IFERROR(D175*VLOOKUP(B175,Лист1!B$1:J$999,5,0),"") ->  | J175: =IFERROR(VLOOKUP(I175,Лист1!$N$3:$Q$500,2,0),"") ->  | L175: =IFERROR(CEILING(VLOOKUP(I175,Лист1!$N$3:$Q$500,4,0)*K175,1),"") -> 
A176: =IF(D176>0,COUNT(D$16:D176,""),"") ->  | C176: =IFERROR(VLOOKUP(B176,Лист1!B$2:J$999,3,0),"") ->  | E176: =IFERROR(D176*VLOOKUP(B176,Лист1!B$1:J$999,5,0),"") ->  | J176: =IFERROR(VLOOKUP(I176,Лист1!$N$3:$Q$500,2,0),"") ->  | L176: =IFERROR(CEILING(VLOOKUP(I176,Лист1!$N$3:$Q$500,4,0)*K176,1),"") -> 
A177: =IF(D177>0,COUNT(D$16:D177,""),"") ->  | C177: =IFERROR(VLOOKUP(B177,Лист1!B$2:J$999,3,0),"") ->  | E177: =IFERROR(D177*VLOOKUP(B177,Лист1!B$1:J$999,5,0),"") ->  | J177: =IFERROR(VLOOKUP(I177,Лист1!$N$3:$Q$500,2,0),"") ->  | L177: =IFERROR(CEILING(VLOOKUP(I177,Лист1!$N$3:$Q$500,4,0)*K177,1),"") -> 
A178: =IF(D178>0,COUNT(D$16:D178,""),"") ->  | C178: =IFERROR(VLOOKUP(B178,Лист1!B$2:J$999,3,0),"") ->  | E178: =IFERROR(D178*VLOOKUP(B178,Лист1!B$1:J$999,5,0),"") ->  | J178: =IFERROR(VLOOKUP(I178,Лист1!$N$3:$Q$500,2,0),"") ->  | L178: =IFERROR(CEILING(VLOOKUP(I178,Лист1!$N$3:$Q$500,4,0)*K178,1),"") -> 
A179: =IF(D179>0,COUNT(D$16:D179,""),"") ->  | C179: =IFERROR(VLOOKUP(B179,Лист1!B$2:J$999,3,0),"") ->  | E179: =IFERROR(D179*VLOOKUP(B179,Лист1!B$1:J$999,5,0),"") ->  | J179: =IFERROR(VLOOKUP(I179,Лист1!$N$3:$Q$500,2,0),"") ->  | L179: =IFERROR(CEILING(VLOOKUP(I179,Лист1!$N$3:$Q$500,4,0)*K179,1),"") -> 
A180: =IF(D180>0,COUNT(D$16:D180,""),"") ->  | C180: =IFERROR(VLOOKUP(B180,Лист1!B$2:J$999,3,0),"") ->  | E180: =IFERROR(D180*VLOOKUP(B180,Лист1!B$1:J$999,5,0),"") ->  | J180: =IFERROR(VLOOKUP(I180,Лист1!$N$3:$Q$500,2,0),"") ->  | L180: =IFERROR(CEILING(VLOOKUP(I180,Лист1!$N$3:$Q$500,4,0)*K180,1),"") -> 
A181: =IF(D181>0,COUNT(D$16:D181,""),"") ->  | C181: =IFERROR(VLOOKUP(B181,Лист1!B$2:J$999,3,0),"") ->  | E181: =IFERROR(D181*VLOOKUP(B181,Лист1!B$1:J$999,5,0),"") ->  | J181: =IFERROR(VLOOKUP(I181,Лист1!$N$3:$Q$500,2,0),"") ->  | L181: =IFERROR(CEILING(VLOOKUP(I181,Лист1!$N$3:$Q$500,4,0)*K181,1),"") -> 
A182: =IF(D182>0,COUNT(D$16:D182,""),"") ->  | C182: =IFERROR(VLOOKUP(B182,Лист1!B$2:J$999,3,0),"") ->  | E182: =IFERROR(D182*VLOOKUP(B182,Лист1!B$1:J$999,5,0),"") ->  | J182: =IFERROR(VLOOKUP(I182,Лист1!$N$3:$Q$500,2,0),"") ->  | L182: =IFERROR(CEILING(VLOOKUP(I182,Лист1!$N$3:$Q$500,4,0)*K182,1),"") -> 
A183: =IF(D183>0,COUNT(D$16:D183,""),"") ->  | C183: =IFERROR(VLOOKUP(B183,Лист1!B$2:J$999,3,0),"") ->  | E183: =IFERROR(D183*VLOOKUP(B183,Лист1!B$1:J$999,5,0),"") ->  | J183: =IFERROR(VLOOKUP(I183,Лист1!$N$3:$Q$500,2,0),"") ->  | L183: =IFERROR(CEILING(VLOOKUP(I183,Лист1!$N$3:$Q$500,4,0)*K183,1),"") -> 
A184: =IF(D184>0,COUNT(D$16:D184,""),"") ->  | C184: =IFERROR(VLOOKUP(B184,Лист1!B$2:J$999,3,0),"") ->  | E184: =IFERROR(D184*VLOOKUP(B184,Лист1!B$1:J$999,5,0),"") ->  | J184: =IFERROR(VLOOKUP(I184,Лист1!$N$3:$Q$500,2,0),"") ->  | L184: =IFERROR(CEILING(VLOOKUP(I184,Лист1!$N$3:$Q$500,4,0)*K184,1),"") -> 
A185: =IF(D185>0,COUNT(D$16:D185,""),"") ->  | C185: =IFERROR(VLOOKUP(B185,Лист1!B$2:J$999,3,0),"") ->  | E185: =IFERROR(D185*VLOOKUP(B185,Лист1!B$1:J$999,5,0),"") ->  | J185: =IFERROR(VLOOKUP(I185,Лист1!$N$3:$Q$500,2,0),"") ->  | L185: =IFERROR(CEILING(VLOOKUP(I185,Лист1!$N$3:$Q$500,4,0)*K185,1),"") -> 
A186: =IF(D186>0,COUNT(D$16:D186,""),"") ->  | C186: =IFERROR(VLOOKUP(B186,Лист1!B$2:J$999,3,0),"") ->  | E186: =IFERROR(D186*VLOOKUP(B186,Лист1!B$1:J$999,5,0),"") ->  | J186: =IFERROR(VLOOKUP(I186,Лист1!$N$3:$Q$500,2,0),"") ->  | L186: =IFERROR(CEILING(VLOOKUP(I186,Лист1!$N$3:$Q$500,4,0)*K186,1),"") -> 
A187: =IF(D187>0,COUNT(D$16:D187,""),"") ->  | C187: =IFERROR(VLOOKUP(B187,Лист1!B$2:J$999,3,0),"") ->  | E187: =IFERROR(D187*VLOOKUP(B187,Лист1!B$1:J$999,5,0),"") ->  | J187: =IFERROR(VLOOKUP(I187,Лист1!$N$3:$Q$500,2,0),"") ->  | L187: =IFERROR(CEILING(VLOOKUP(I187,Лист1!$N$3:$Q$500,4,0)*K187,1),"") -> 
A188: =IF(D188>0,COUNT(D$16:D188,""),"") ->  | C188: =IFERROR(VLOOKUP(B188,Лист1!B$2:J$999,3,0),"") ->  | E188: =IFERROR(D188*VLOOKUP(B188,Лист1!B$1:J$999,5,0),"") ->  | J188: =IFERROR(VLOOKUP(I188,Лист1!$N$3:$Q$500,2,0),"") ->  | L188: =IFERROR(CEILING(VLOOKUP(I188,Лист1!$N$3:$Q$500,4,0)*K188,1),"") -> 
A189: =IF(D189>0,COUNT(D$16:D189,""),"") ->  | C189: =IFERROR(VLOOKUP(B189,Лист1!B$2:J$999,3,0),"") ->  | E189: =IFERROR(D189*VLOOKUP(B189,Лист1!B$1:J$999,5,0),"") ->  | J189: =IFERROR(VLOOKUP(I189,Лист1!$N$3:$Q$500,2,0),"") ->  | L189: =IFERROR(CEILING(VLOOKUP(I189,Лист1!$N$3:$Q$500,4,0)*K189,1),"") -> 
A190: =IF(D190>0,COUNT(D$16:D190,""),"") ->  | C190: =IFERROR(VLOOKUP(B190,Лист1!B$2:J$999,3,0),"") ->  | E190: =IFERROR(D190*VLOOKUP(B190,Лист1!B$1:J$999,5,0),"") ->  | J190: =IFERROR(VLOOKUP(I190,Лист1!$N$3:$Q$500,2,0),"") ->  | L190: =IFERROR(CEILING(VLOOKUP(I190,Лист1!$N$3:$Q$500,4,0)*K190,1),"") -> 
A191: =IF(D191>0,COUNT(D$16:D191,""),"") ->  | C191: =IFERROR(VLOOKUP(B191,Лист1!B$2:J$999,3,0),"") ->  | E191: =IFERROR(D191*VLOOKUP(B191,Лист1!B$1:J$999,5,0),"") ->  | J191: =IFERROR(VLOOKUP(I191,Лист1!$N$3:$Q$500,2,0),"") ->  | L191: =IFERROR(CEILING(VLOOKUP(I191,Лист1!$N$3:$Q$500,4,0)*K191,1),"") -> 
A192: =IF(D192>0,COUNT(D$16:D192,""),"") ->  | C192: =IFERROR(VLOOKUP(B192,Лист1!B$2:J$999,3,0),"") ->  | E192: =IFERROR(D192*VLOOKUP(B192,Лист1!B$1:J$999,5,0),"") ->  | J192: =IFERROR(VLOOKUP(I192,Лист1!$N$3:$Q$500,2,0),"") ->  | L192: =IFERROR(CEILING(VLOOKUP(I192,Лист1!$N$3:$Q$500,4,0)*K192,1),"") -> 
A193: =IF(D193>0,COUNT(D$16:D193,""),"") ->  | C193: =IFERROR(VLOOKUP(B193,Лист1!B$2:J$999,3,0),"") ->  | E193: =IFERROR(D193*VLOOKUP(B193,Лист1!B$1:J$999,5,0),"") ->  | J193: =IFERROR(VLOOKUP(I193,Лист1!$N$3:$Q$500,2,0),"") ->  | L193: =IFERROR(CEILING(VLOOKUP(I193,Лист1!$N$3:$Q$500,4,0)*K193,1),"") -> 
A194: =IF(D194>0,COUNT(D$16:D194,""),"") ->  | C194: =IFERROR(VLOOKUP(B194,Лист1!B$2:J$999,3,0),"") ->  | E194: =IFERROR(D194*VLOOKUP(B194,Лист1!B$1:J$999,5,0),"") ->  | J194: =IFERROR(VLOOKUP(I194,Лист1!$N$3:$Q$500,2,0),"") ->  | L194: =IFERROR(CEILING(VLOOKUP(I194,Лист1!$N$3:$Q$500,4,0)*K194,1),"") -> 
A195: =IF(D195>0,COUNT(D$16:D195,""),"") ->  | C195: =IFERROR(VLOOKUP(B195,Лист1!B$2:J$999,3,0),"") ->  | E195: =IFERROR(D195*VLOOKUP(B195,Лист1!B$1:J$999,5,0),"") ->  | J195: =IFERROR(VLOOKUP(I195,Лист1!$N$3:$Q$500,2,0),"") ->  | L195: =IFERROR(CEILING(VLOOKUP(I195,Лист1!$N$3:$Q$500,4,0)*K195,1),"") -> 
A196: =IF(D196>0,COUNT(D$16:D196,""),"") ->  | C196: =IFERROR(VLOOKUP(B196,Лист1!B$2:J$999,3,0),"") ->  | E196: =IFERROR(D196*VLOOKUP(B196,Лист1!B$1:J$999,5,0),"") ->  | J196: =IFERROR(VLOOKUP(I196,Лист1!$N$3:$Q$500,2,0),"") ->  | L196: =IFERROR(CEILING(VLOOKUP(I196,Лист1!$N$3:$Q$500,4,0)*K196,1),"") -> 
A197: =IF(D197>0,COUNT(D$16:D197,""),"") ->  | C197: =IFERROR(VLOOKUP(B197,Лист1!B$2:J$999,3,0),"") ->  | E197: =IFERROR(D197*VLOOKUP(B197,Лист1!B$1:J$999,5,0),"") ->  | J197: =IFERROR(VLOOKUP(I197,Лист1!$N$3:$Q$500,2,0),"") ->  | L197: =IFERROR(CEILING(VLOOKUP(I197,Лист1!$N$3:$Q$500,4,0)*K197,1),"") -> 
A198: =IF(D198>0,COUNT(D$16:D198,""),"") ->  | C198: =IFERROR(VLOOKUP(B198,Лист1!B$2:J$999,3,0),"") ->  | E198: =IFERROR(D198*VLOOKUP(B198,Лист1!B$1:J$999,5,0),"") ->  | J198: =IFERROR(VLOOKUP(I198,Лист1!$N$3:$Q$500,2,0),"") ->  | L198: =IFERROR(CEILING(VLOOKUP(I198,Лист1!$N$3:$Q$500,4,0)*K198,1),"") -> 
A199: =IF(D199>0,COUNT(D$16:D199,""),"") ->  | C199: =IFERROR(VLOOKUP(B199,Лист1!B$2:J$999,3,0),"") ->  | E199: =IFERROR(D199*VLOOKUP(B199,Лист1!B$1:J$999,5,0),"") ->  | J199: =IFERROR(VLOOKUP(I199,Лист1!$N$3:$Q$500,2,0),"") ->  | L199: =IFERROR(CEILING(VLOOKUP(I199,Лист1!$N$3:$Q$500,4,0)*K199,1),"") -> 
A200: =IF(D200>0,COUNT(D$16:D200,""),"") ->  | C200: =IFERROR(VLOOKUP(B200,Лист1!B$2:J$999,3,0),"") ->  | E200: =IFERROR(D200*VLOOKUP(B200,Лист1!B$1:J$999,5,0),"") ->  | J200: =IFERROR(VLOOKUP(I200,Лист1!$N$3:$Q$500,2,0),"") ->  | L200: =IFERROR(CEILING(VLOOKUP(I200,Лист1!$N$3:$Q$500,4,0)*K200,1),"") -> 
A201: =IF(D201>0,COUNT(D$16:D201,""),"") ->  | C201: =IFERROR(VLOOKUP(B201,Лист1!B$2:J$999,3,0),"") ->  | E201: =IFERROR(D201*VLOOKUP(B201,Лист1!B$1:J$999,5,0),"") ->  | J201: =IFERROR(VLOOKUP(I201,Лист1!$N$3:$Q$500,2,0),"") ->  | L201: =IFERROR(CEILING(VLOOKUP(I201,Лист1!$N$3:$Q$500,4,0)*K201,1),"") -> 
A202: =IF(D202>0,COUNT(D$16:D202,""),"") ->  | C202: =IFERROR(VLOOKUP(B202,Лист1!B$2:J$999,3,0),"") ->  | E202: =IFERROR(D202*VLOOKUP(B202,Лист1!B$1:J$999,5,0),"") ->  | J202: =IFERROR(VLOOKUP(I202,Лист1!$N$3:$Q$500,2,0),"") ->  | L202: =IFERROR(CEILING(VLOOKUP(I202,Лист1!$N$3:$Q$500,4,0)*K202,1),"") -> 
... 298 more rows

Sheet Лист1
B1: Наименование работ | C1: Необходимые материалы | D1: Ед. изм. | E1: Кол-во | F1: Стоимость работ за ед. | N1: Наименование материала | O1: Ед. изм. | P1: Кол-во | Q1: Стоимость работ за ед.
A2: 1 | B2: Облицовка стен листами из ГКЛ по металлическим направляющим | D2: м2 | F2: 300 | H2: =IF(ROW()-ROW(FolowList)+1>ROWS(WorkLisr)-COUNTBLANK(WorkLisr),"",INDIRECT(ADDRESS(SMALL((IF(WorkLisr<>"",ROW(WorkLisr),ROW()+ROWS(WorkLisr))),ROW()-ROW(FolowList)+1),COLUMN(WorkLisr),4))) -> Облицовка стен листами из ГКЛ по металлическим направляющим
C3: Профиль ПН 27*28 | D3: шт | E3: 1.6 | F3: 79 | H3: =IF(ROW()-ROW(FolowList)+1>ROWS(WorkLisr)-COUNTBLANK(WorkLisr),"",INDIRECT(ADDRESS(SMALL((IF(WorkLisr<>"",ROW(WorkLisr),ROW()+ROWS(WorkLisr))),ROW()-ROW(FolowList)+1),COLUMN(WorkLisr),4))) -> Облицовка откосов дверных или оконных листами из ГКЛ по металлическим направляющим | L3: =IF(COUNTIF(M3:M$3,M3)=1,MAX(L$2:L2)+1,"") -> 1 | M3: =IF(ISBLANK(C3),"",C3) -> Профиль ПН 27*28 | N3: =IF(MAX(NameCount)<ROW(1:1),"",VLOOKUP(ROW(1:1),NameList,2)) -> Профиль ПН 27*28 | O3: шт | Q3: 79
C4: Профиль ПП 60*27 | D4: шт | E4: 1 | F4: 105 | H4: =IF(ROW()-ROW(FolowList)+1>ROWS(WorkLisr)-COUNTBLANK(WorkLisr),"",INDIRECT(ADDRESS(SMALL((IF(WorkLisr<>"",ROW(WorkLisr),ROW()+ROWS(WorkLisr))),ROW()-ROW(FolowList)+1),COLUMN(WorkLisr),4))) -> Облицовка стен листами из ГВЛ по металлическим направляющим | L4: =IF(COUNTIF(M$3:M4,M4)=1,MAX(L$2:L3)+1,"") -> 2 | M4: =IF(ISBLANK(C4),"",C4) -> Профиль ПП 60*27 | N4: Профиль ПП 60*27 | O4: шт | Q4: 105
C5: Саморез 3,5*11 (клоп) | D5: шт | E5: =E6*2+E4*4+E7*8 -> 47.6 | F5: 0.35 | H5: =IF(ROW()-ROW(FolowList)+1>ROWS(WorkLisr)-COUNTBLANK(WorkLisr),"",INDIRECT(ADDRESS(SMALL((IF(WorkLisr<>"",ROW(WorkLisr),ROW()+ROWS(WorkLisr))),ROW()-ROW(FolowList)+1),COLUMN(WorkLisr),4))) -> Облицовка откосов дверных или оконных листами из ГВЛ по металлическим направляющим | L5: =IF(COUNTIF(M$3:M5,M5)=1,MAX(L$2:L4)+1,"") -> 3 | M5: Саморез 3,5*11 (клоп) | N5: Саморез 3,5*11 (клоп) | O5: шт | Q5: 0.35
C6: Саморез 3,5*25 | D6: шт | E6: 20 | F6: 0.55 | H6: =IF(ROW()-ROW(FolowList)+1>ROWS(WorkLisr)-COUNTBLANK(WorkLisr),"",INDIRECT(ADDRESS(SMALL((IF(WorkLisr<>"",ROW(WorkLisr),ROW()+ROWS(WorkLisr))),ROW()-ROW(FolowList)+1),COLUMN(WorkLisr),4))) -> Облицовка стен листами из ГВЛ в два слоя по металлическим направляющим | L6: =IF(COUNTIF(M$3:M6,M6)=1,MAX(L$2:L5)+1,"") -> 4 | M6: Саморез 3,5*25 | N6: Саморез 3,5*25 | O6: шт | Q6: 0.55
C7: Соединитель "Краб" | D7: шт | E7: 0.45 | F7: 10 | H7: =IF(ROW()-ROW(FolowList)+1>ROWS(WorkLisr)-COUNTBLANK(WorkLisr),"",INDIRECT(ADDRESS(SMALL((IF(WorkLisr<>"",ROW(WorkLisr),ROW()+ROWS(WorkLisr))),ROW()-ROW(FolowList)+1),COLUMN(WorkLisr),4))) ->  | L7: =IF(COUNTIF(M$3:M7,M7)=1,MAX(L$2:L6)+1,"") -> 5 | M7: Соединитель "Краб" | N7: Соединитель "Краб" | O7: шт | Q7: 10
C8: Подвес прямой 60*27 | D8: шт | E8: 5 | F8: 6 | H8: =IF(ROW()-ROW(FolowList)+1>ROWS(WorkLisr)-COUNTBLANK(WorkLisr),"",INDIRECT(ADDRESS(SMALL((IF(WorkLisr<>"",ROW(WorkLisr),ROW()+ROWS(WorkLisr))),ROW()-ROW(FolowList)+1),COLUMN(WorkLisr),4))) ->  | L8: =IF(COUNTIF(M$3:M8,M8)=1,MAX(L$2:L7)+1,"") -> 6 | M8: Подвес прямой 60*27 | N8: Подвес прямой 60*27 | O8: шт | Q8: 6
C9: Лист ГКЛ 9,5мм | D9: шт | E9: =1/3 -> 0.3333333333 | F9: 280 | H9: =IF(ROW()-ROW(FolowList)+1>ROWS(WorkLisr)-COUNTBLANK(WorkLisr),"",INDIRECT(ADDRESS(SMALL((IF(WorkLisr<>"",ROW(WorkLisr),ROW()+ROWS(WorkLisr))),ROW()-ROW(FolowList)+1),COLUMN(WorkLisr),4))) ->  | L9: =IF(COUNTIF(M$3:M9,M9)=1,MAX(L$2:L8)+1,"") -> 7 | M9: Лист ГКЛ 9,5мм | N9: Лист ГКЛ 9,5мм | O9: шт | Q9: 280
C10: Лента армирующая | D10: м.п. | E10: 3.2 | F10: 1 | H10: =IF(ROW()-ROW(FolowList)+1>ROWS(WorkLisr)-COUNTBLANK(WorkLisr),"",INDIRECT(ADDRESS(SMALL((IF(WorkLisr<>"",ROW(WorkLisr),ROW()+ROWS(WorkLisr))),ROW()-ROW(FolowList)+1),COLUMN(WorkLisr),4))) ->  | L10: =IF(COUNTIF(M$3:M10,M10)=1,MAX(L$2:L9)+1,"") -> 8 | M10: Лента армирующая | N10: Лента армирующая | O10: м.п. | Q10: 3.2
A11: 2 | B11: Облицовка откосов дверных или оконных листами из ГКЛ по металлическим направляющим | D11: м.п. | F11: 200 | H11: =IF(ROW()-ROW(FolowList)+1>ROWS(WorkLisr)-COUNTBLANK(WorkLisr),"",INDIRECT(ADDRESS(SMALL((IF(WorkLisr<>"",ROW(WorkLisr),ROW()+ROWS(WorkLisr))),ROW()-ROW(FolowList)+1),COLUMN(WorkLisr),4))) ->  | L11: =IF(COUNTIF(M$3:M11,M11)=1,MAX(L$2:L10)+1,"") -> 9
C12: Профиль ПН 27*28 | D12: шт | E12: 1.6 | F12: 79 | H12: =IF(ROW()-ROW(FolowList)+1>ROWS(WorkLisr)-COUNTBLANK(WorkLisr),"",INDIRECT(ADDRESS(SMALL((IF(WorkLisr<>"",ROW(WorkLisr),ROW()+ROWS(WorkLisr))),ROW()-ROW(FolowList)+1),COLUMN(WorkLisr),4))) ->  | L12: =IF(COUNTIF(M$3:M12,M12)=1,MAX(L$2:L11)+1,"") ->  | M12: Профиль ПН 27*28 | N12: Профиль стартовый | O12: м.п. | Q12: 20
C13: Профиль ПП 60*27 | D13: шт | E13: 1 | F13: 105 | H13: =IF(ROW()-ROW(FolowList)+1>ROWS(WorkLisr)-COUNTBLANK(WorkLisr),"",INDIRECT(ADDRESS(SMALL((IF(WorkLisr<>"",ROW(WorkLisr),ROW()+ROWS(WorkLisr))),ROW()-ROW(FolowList)+1),COLUMN(WorkLisr),4))) ->  | L13: =IF(COUNTIF(M$3:M13,M13)=1,MAX(L$2:L12)+1,"") ->  | M13: Профиль ПП 60*27 | N13: Саморез 3,5*25 (двузаходной) | O13: шт | Q13: 0.5
C14: Саморез 3,5*11 (клоп) | D14: шт | E14: =E15*2+E13*4+E16*8 -> 47.6 | F14: 0.35 | H14: =IF(ROW()-ROW(FolowList)+1>ROWS(WorkLisr)-COUNTBLANK(WorkLisr),"",INDIRECT(ADDRESS(SMALL((IF(WorkLisr<>"",ROW(WorkLisr),ROW()+ROWS(WorkLisr))),ROW()-ROW(FolowList)+1),COLUMN(WorkLisr),4))) ->  | L14: =IF(COUNTIF(M$3:M14,M14)=1,MAX(L$2:L13)+1,"") ->  | M14: Саморез 3,5*11 (клоп) | N14: Лист ГВЛ 10мм | O14: шт | Q14: 0.55
C15: Саморез 3,5*25 | D15: шт | E15: 20 | F15: 0.55 | H15: =IF(ROW()-ROW(FolowList)+1>ROWS(WorkLisr)-COUNTBLANK(WorkLisr),"",INDIRECT(ADDRESS(SMALL((IF(WorkLisr<>"",ROW(WorkLisr),ROW()+ROWS(WorkLisr))),ROW()-ROW(FolowList)+1),COLUMN(WorkLisr),4))) ->  | L15: =IF(COUNTIF(M$3:M15,M15)=1,MAX(L$2:L14)+1,"") ->  | M15: Саморез 3,5*25 | N15: Саморез 3,5*35 (двузаходной) | O15: шт
C16: Соединитель "Краб" | D16: шт | E16: 0.45 | F16: 10 | H16: =IF(ROW()-ROW(FolowList)+1>ROWS(WorkLisr)-COUNTBLANK(WorkLisr),"",INDIRECT(ADDRESS(SMALL((IF(WorkLisr<>"",ROW(WorkLisr),ROW()+ROWS(WorkLisr))),ROW()-ROW(FolowList)+1),COLUMN(WorkLisr),4))) ->  | L16: =IF(COUNTIF(M$3:M16,M16)=1,MAX(L$2:L15)+1,"") ->  | M16: Соединитель "Краб"
C17: Подвес прямой 60*27 | D17: шт | E17: 5 | F17: 6 | H17: =IF(ROW()-ROW(FolowList)+1>ROWS(WorkLisr)-COUNTBLANK(WorkLisr),"",INDIRECT(ADDRESS(SMALL((IF(WorkLisr<>"",ROW(WorkLisr),ROW()+ROWS(WorkLisr))),ROW()-ROW(FolowList)+1),COLUMN(WorkLisr),4))) ->  | L17: =IF(COUNTIF(M$3:M17,M17)=1,MAX(L$2:L16)+1,"") ->  | M17: Подвес прямой 60*27
C18: Профиль стартовый | D18: м.п. | E18: 1 | F18: 20 | H18: =IF(ROW()-ROW(FolowList)+1>ROWS(WorkLisr)-COUNTBLANK(WorkLisr),"",INDIRECT(ADDRESS(SMALL((IF(WorkLisr<>"",ROW(WorkLisr),ROW()+ROWS(WorkLisr))),ROW()-ROW(FolowList)+1),COLUMN(WorkLisr),4))) ->  | L18: =IF(COUNTIF(M$3:M18,M18)=1,MAX(L$2:L17)+1,"") -> 10 | M18: Профиль стартовый
C19: Лист ГКЛ 9,5мм | D19: шт | E19: =1/3 -> 0.3333333333 | F19: 280 | H19: =IF(ROW()-ROW(FolowList)+1>ROWS(WorkLisr)-COUNTBLANK(WorkLisr),"",INDIRECT(ADDRESS(SMALL((IF(WorkLisr<>"",ROW(WorkLisr),ROW()+ROWS(WorkLisr))),ROW()-ROW(FolowList)+1),COLUMN(WorkLisr),4))) ->  | L19: =IF(COUNTIF(M$3:M19,M19)=1,MAX(L$2:L18)+1,"") ->  | M19: Лист ГКЛ 9,5мм
C20: Лента армирующая | D20: м.п. | E20: 3.2 | F20: 1 | H20: =IF(ROW()-ROW(FolowList)+1>ROWS(WorkLisr)-COUNTBLANK(WorkLisr),"",INDIRECT(ADDRESS(SMALL((IF(WorkLisr<>"",ROW(WorkLisr),ROW()+ROWS(WorkLisr))),ROW()-ROW(FolowList)+1),COLUMN(WorkLisr),4))) ->  | L20: =IF(COUNTIF(M$3:M20,M20)=1,MAX(L$2:L19)+1,"") ->  | M20: Лента армирующая
A21: 3 | B21: Облицовка стен листами из ГВЛ по металлическим направляющим | D21: м2 | F21: 350 | H21: =IF(ROW()-ROW(FolowList)+1>ROWS(WorkLisr)-COUNTBLANK(WorkLisr),"",INDIRECT(ADDRESS(SMALL((IF(WorkLisr<>"",ROW(WorkLisr),ROW()+ROWS(WorkLisr))),ROW()-ROW(FolowList)+1),COLUMN(WorkLisr),4))) ->  | L21: =IF(COUNTIF(M$3:M21,M21)=1,MAX(L$2:L20)+1,"") -> 
C22: Профиль ПН 27*28 | D22: шт | E22: 1.6 | F22: 79 | H22: =IF(ROW()-ROW(FolowList)+1>ROWS(WorkLisr)-COUNTBLANK(WorkLisr),"",INDIRECT(ADDRESS(SMALL((IF(WorkLisr<>"",ROW(WorkLisr),ROW()+ROWS(WorkLisr))),ROW()-ROW(FolowList)+1),COLUMN(WorkLisr),4))) ->  | L22: =IF(COUNTIF(M$3:M22,M22)=1,MAX(L$2:L21)+1,"") ->  | M22: Профиль ПН 27*28
C23: Профиль ПП 60*27 | D23: шт | E23: 1 | F23: 105 | H23: =IF(ROW()-ROW(FolowList)+1>ROWS(WorkLisr)-COUNTBLANK(WorkLisr),"",INDIRECT(ADDRESS(SMALL((IF(WorkLisr<>"",ROW(WorkLisr),ROW()+ROWS(WorkLisr))),ROW()-ROW(FolowList)+1),COLUMN(WorkLisr),4))) ->  | L23: =IF(COUNTIF(M$3:M23,M23)=1,MAX(L$2:L22)+1,"") ->  | M23: Профиль ПП 60*27
C24: Саморез 3,5*11 (клоп) | D24: шт | E24: =E25*2+E23*4+E26*8 -> 47.6 | F24: 0.35 | H24: =IF(ROW()-ROW(FolowList)+1>ROWS(WorkLisr)-COUNTBLANK(WorkLisr),"",INDIRECT(ADDRESS(SMALL((IF(WorkLisr<>"",ROW(WorkLisr),ROW()+ROWS(WorkLisr))),ROW()-ROW(FolowList)+1),COLUMN(WorkLisr),4))) ->  | L24: =IF(COUNTIF(M$3:M24,M24)=1,MAX(L$2:L23)+1,"") ->  | M24: Саморез 3,5*11 (клоп)
C25: Саморез 3,5*25 (двузаходной) | D25: шт | E25: 20 | F25: 0.55 | H25: =IF(ROW()-ROW(FolowList)+1>ROWS(WorkLisr)-COUNTBLANK(WorkLisr),"",INDIRECT(ADDRESS(SMALL((IF(WorkLisr<>"",ROW(WorkLisr),ROW()+ROWS(WorkLisr))),ROW()-ROW(FolowList)+1),COLUMN(WorkLisr),4))) ->  | L25: =IF(COUNTIF(M$3:M25,M25)=1,MAX(L$2:L24)+1,"") -> 11 | M25: Саморез 3,5*25 (двузаходной)
C26: Соединитель "Краб" | D26: шт | E26: 0.45 | F26: 10 | H26: =IF(ROW()-ROW(FolowList)+1>ROWS(WorkLisr)-COUNTBLANK(WorkLisr),"",INDIRECT(ADDRESS(SMALL((IF(WorkLisr<>"",ROW(WorkLisr),ROW()+ROWS(WorkLisr))),ROW()-ROW(FolowList)+1),COLUMN(WorkLisr),4))) ->  | L26: =IF(COUNTIF(M$3:M26,M26)=1,MAX(L$2:L25)+1,"") ->  | M26: Соединитель "Краб"
C27: Подвес прямой 60*27 | D27: шт | E27: 5 | F27: 6 | H27: =IF(ROW()-ROW(FolowList)+1>ROWS(WorkLisr)-COUNTBLANK(WorkLisr),"",INDIRECT(ADDRESS(SMALL((IF(WorkLisr<>"",ROW(WorkLisr),ROW()+ROWS(WorkLisr))),ROW()-ROW(FolowList)+1),COLUMN(WorkLisr),4))) ->  | L27: =IF(COUNTIF(M$3:M27,M27)=1,MAX(L$2:L26)+1,"") ->  | M27: Подвес прямой 60*27
C28: Лист ГВЛ 10мм | D28: шт | E28: =1/3 -> 0.3333333333 | F28: 500 | H28: =IF(ROW()-ROW(FolowList)+1>ROWS(WorkLisr)-COUNTBLANK(WorkLisr),"",INDIRECT(ADDRESS(SMALL((IF(WorkLisr<>"",ROW(WorkLisr),ROW()+ROWS(WorkLisr))),ROW()-ROW(FolowList)+1),COLUMN(WorkLisr),4))) ->  | L28: =IF(COUNTIF(M$3:M28,M28)=1,MAX(L$2:L27)+1,"") -> 12 | M28: Лист ГВЛ 10мм
C29: Лента армирующая | D29: м.п. | E29: 3.2 | F29: 1 | H29: =IF(ROW()-ROW(FolowList)+1>ROWS(WorkLisr)-COUNTBLANK(WorkLisr),"",INDIRECT(ADDRESS(SMALL((IF(WorkLisr<>"",ROW(WorkLisr),ROW()+ROWS(WorkLisr))),ROW()-ROW(FolowList)+1),COLUMN(WorkLisr),4))) ->  | L29: =IF(COUNTIF(M$3:M29,M29)=1,MAX(L$2:L28)+1,"") ->  | M29: Лента армирующая
A30: 4 | B30: Облицовка откосов дверных или оконных листами из ГВЛ по металлическим направляющим | D30: м.п. | F30: 200 | H30: =IF(ROW()-ROW(FolowList)+1>ROWS(WorkLisr)-COUNTBLANK(WorkLisr),"",INDIRECT(ADDRESS(SMALL((IF(WorkLisr<>"",ROW(WorkLisr),ROW()+ROWS(WorkLisr))),ROW()-ROW(FolowList)+1),COLUMN(WorkLisr),4))) ->  | L30: =IF(COUNTIF(M$3:M30,M30)=1,MAX(L$2:L29)+1,"") -> 
C31: Профиль ПН 27*28 | D31: шт | E31: 1.6 | F31: 79 | H31: =IF(ROW()-ROW(FolowList)+1>ROWS(WorkLisr)-COUNTBLANK(WorkLisr),"",INDIRECT(ADDRESS(SMALL((IF(WorkLisr<>"",ROW(WorkLisr),ROW()+ROWS(WorkLisr))),ROW()-ROW(FolowList)+1),COLUMN(WorkLisr),4))) ->  | L31: =IF(COUNTIF(M$3:M31,M31)=1,MAX(L$2:L30)+1,"") ->  | M31: Профиль ПН 27*28
C32: Профиль ПП 60*27 | D32: шт | E32: 1 | F32: 105 | H32: =IF(ROW()-ROW(FolowList)+1>ROWS(WorkLisr)-COUNTBLANK(WorkLisr),"",INDIRECT(ADDRESS(SMALL((IF(WorkLisr<>"",ROW(WorkLisr),ROW()+ROWS(WorkLisr))),ROW()-ROW(FolowList)+1),COLUMN(WorkLisr),4))) ->  | L32: =IF(COUNTIF(M$3:M32,M32)=1,MAX(L$2:L31)+1,"") ->  | M32: Профиль ПП 60*27
C33: Саморез 3,5*11 (клоп) | D33: шт | E33: =E34*2+E32*4+E35*8 -> 47.6 | F33: 0.35 | H33: =IF(ROW()-ROW(FolowList)+1>ROWS(WorkLisr)-COUNTBLANK(WorkLisr),"",INDIRECT(ADDRESS(SMALL((IF(WorkLisr<>"",ROW(WorkLisr),ROW()+ROWS(WorkLisr))),ROW()-ROW(FolowList)+1),COLUMN(WorkLisr),4))) ->  | L33: =IF(COUNTIF(M$3:M33,M33)=1,MAX(L$2:L32)+1,"") ->  | M33: Саморез 3,5*11 (клоп)
C34: Саморез 3,5*25 (двузаходной) | D34: шт | E34: 20 | F34: 0.55 | H34: =IF(ROW()-ROW(FolowList)+1>ROWS(WorkLisr)-COUNTBLANK(WorkLisr),"",INDIRECT(ADDRESS(SMALL((IF(WorkLisr<>"",ROW(WorkLisr),ROW()+ROWS(WorkLisr))),ROW()-ROW(FolowList)+1),COLUMN(WorkLisr),4))) ->  | L34: =IF(COUNTIF(M$3:M34,M34)=1,MAX(L$2:L33)+1,"") ->  | M34: Саморез 3,5*25 (двузаходной)
C35: Соединитель "Краб" | D35: шт | E35: 0.45 | F35: 10 | H35: =IF(ROW()-ROW(FolowList)+1>ROWS(WorkLisr)-COUNTBLANK(WorkLisr),"",INDIRECT(ADDRESS(SMALL((IF(WorkLisr<>"",ROW(WorkLisr),ROW()+ROWS(WorkLisr))),ROW()-ROW(FolowList)+1),COLUMN(WorkLisr),4))) ->  | L35: =IF(COUNTIF(M$3:M35,M35)=1,MAX(L$2:L34)+1,"") ->  | M35: Соединитель "Краб"
C36: Подвес прямой 60*27 | D36: шт | E36: 5 | F36: 6 | H36: =IF(ROW()-ROW(FolowList)+1>ROWS(WorkLisr)-COUNTBLANK(WorkLisr),"",INDIRECT(ADDRESS(SMALL((IF(WorkLisr<>"",ROW(WorkLisr),ROW()+ROWS(WorkLisr))),ROW()-ROW(FolowList)+1),COLUMN(WorkLisr),4))) ->  | L36: =IF(COUNTIF(M$3:M36,M36)=1,MAX(L$2:L35)+1,"") ->  | M36: Подвес прямой 60*27
C37: Профиль стартовый | D37: м.п. | E37: 1 | F37: 20 | H37: =IF(ROW()-ROW(FolowList)+1>ROWS(WorkLisr)-COUNTBLANK(WorkLisr),"",INDIRECT(ADDRESS(SMALL((IF(WorkLisr<>"",ROW(WorkLisr),ROW()+ROWS(WorkLisr))),ROW()-ROW(FolowList)+1),COLUMN(WorkLisr),4))) ->  | L37: =IF(COUNTIF(M$3:M37,M37)=1,MAX(L$2:L36)+1,"") ->  | M37: Профиль стартовый
C38: Лист ГВЛ 10мм | D38: шт | E38: =1/3 -> 0.3333333333 | F38: 500 | H38: =IF(ROW()-ROW(FolowList)+1>ROWS(WorkLisr)-COUNTBLANK(WorkLisr),"",INDIRECT(ADDRESS(SMALL((IF(WorkLisr<>"",ROW(WorkLisr),ROW()+ROWS(WorkLisr))),ROW()-ROW(FolowList)+1),COLUMN(WorkLisr),4))) ->  | L38: =IF(COUNTIF(M$3:M38,M38)=1,MAX(L$2:L37)+1,"") ->  | M38: Лист ГВЛ 10мм
C39: Лента армирующая | D39: м.п. | E39: 3.2 | F39: 1 | H39: =IF(ROW()-ROW(FolowList)+1>ROWS(WorkLisr)-COUNTBLANK(WorkLisr),"",INDIRECT(ADDRESS(SMALL((IF(WorkLisr<>"",ROW(WorkLisr),ROW()+ROWS(WorkLisr))),ROW()-ROW(FolowList)+1),COLUMN(WorkLisr),4))) ->  | L39: =IF(COUNTIF(M$3:M39,M39)=1,MAX(L$2:L38)+1,"") ->  | M39: Лента армирующая
A40: 5 | B40: Облицовка стен листами из ГВЛ в два слоя по металлическим направляющим | D40: м2 | F40: 350 | H40: =IF(ROW()-ROW(FolowList)+1>ROWS(WorkLisr)-COUNTBLANK(WorkLisr),"",INDIRECT(ADDRESS(SMALL((IF(WorkLisr<>"",ROW(WorkLisr),ROW()+ROWS(WorkLisr))),ROW()-ROW(FolowList)+1),COLUMN(WorkLisr),4))) ->  | L40: =IF(COUNTIF(M$3:M40,M40)=1,MAX(L$2:L39)+1,"") -> 
C41: Профиль ПН 27*28 | D41: шт | E41: 1.6 | F41: 79 | H41: =IF(ROW()-ROW(FolowList)+1>ROWS(WorkLisr)-COUNTBLANK(WorkLisr),"",INDIRECT(ADDRESS(SMALL((IF(WorkLisr<>"",ROW(WorkLisr),ROW()+ROWS(WorkLisr))),ROW()-ROW(FolowList)+1),COLUMN(WorkLisr),4))) ->  | L41: =IF(COUNTIF(M$3:M41,M41)=1,MAX(L$2:L40)+1,"") ->  | M41: Профиль ПН 27*28
C42: Профиль ПП 60*27 | D42: шт | E42: 1 | F42: 105 | H42: =IF(ROW()-ROW(FolowList)+1>ROWS(WorkLisr)-COUNTBLANK(WorkLisr),"",INDIRECT(ADDRESS(SMALL((IF(WorkLisr<>"",ROW(WorkLisr),ROW()+ROWS(WorkLisr))),ROW()-ROW(FolowList)+1),COLUMN(WorkLisr),4))) ->  | L42: =IF(COUNTIF(M$3:M42,M42)=1,MAX(L$2:L41)+1,"") ->  | M42: Профиль ПП 60*27
C43: Саморез 3,5*11 (клоп) | D43: шт | E43: =E44*2+E42*4+E45*8 -> 47.6 | F43: 0.35 | H43: =IF(ROW()-ROW(FolowList)+1>ROWS(WorkLisr)-COUNTBLANK(WorkLisr),"",INDIRECT(ADDRESS(SMALL((IF(WorkLisr<>"",ROW(WorkLisr),ROW()+ROWS(WorkLisr))),ROW()-ROW(FolowList)+1),COLUMN(WorkLisr),4))) ->  | L43: =IF(COUNTIF(M$3:M43,M43)=1,MAX(L$2:L42)+1,"") ->  | M43: Саморез 3,5*11 (клоп)
C44: Саморез 3,5*35 (двузаходной) | D44: шт | E44: 20 | F44: 0.55 | H44: =IF(ROW()-ROW(FolowList)+1>ROWS(WorkLisr)-COUNTBLANK(WorkLisr),"",INDIRECT(ADDRESS(SMALL((IF(WorkLisr<>"",ROW(WorkLisr),ROW()+ROWS(WorkLisr))),ROW()-ROW(FolowList)+1),COLUMN(WorkLisr),4))) ->  | L44: =IF(COUNTIF(M$3:M44,M44)=1,MAX(L$2:L43)+1,"") -> 13 | M44: Саморез 3,5*35 (двузаходной)
C45: Соединитель "Краб" | D45: шт | E45: 0.45 | F45: 10 | H45: =IF(ROW()-ROW(FolowList)+1>ROWS(WorkLisr)-COUNTBLANK(WorkLisr),"",INDIRECT(ADDRESS(SMALL((IF(WorkLisr<>"",ROW(WorkLisr),ROW()+ROWS(WorkLisr))),ROW()-ROW(FolowList)+1),COLUMN(WorkLisr),4))) ->  | L45: =IF(COUNTIF(M$3:M45,M45)=1,MAX(L$2:L44)+1,"") ->  | M45: Соединитель "Краб"
C46: Подвес прямой 60*27 | D46: шт | E46: 5 | F46: 6 | H46: =IF(ROW()-ROW(FolowList)+1>ROWS(WorkLisr)-COUNTBLANK(WorkLisr),"",INDIRECT(ADDRESS(SMALL((IF(WorkLisr<>"",ROW(WorkLisr),ROW()+ROWS(WorkLisr))),ROW()-ROW(FolowList)+1),COLUMN(WorkLisr),4))) ->  | L46: =IF(COUNTIF(M$3:M46,M46)=1,MAX(L$2:L45)+1,"") ->  | M46: Подвес прямой 60*27
C47: Лист ГВЛ 10мм | D47: шт | E47: =2*1/3 -> 0.6666666667 | F47: 500 | H47: =IF(ROW()-ROW(FolowList)+1>ROWS(WorkLisr)-COUNTBLANK(WorkLisr),"",INDIRECT(ADDRESS(SMALL((IF(WorkLisr<>"",ROW(WorkLisr),ROW()+ROWS(WorkLisr))),ROW()-ROW(FolowList)+1),COLUMN(WorkLisr),4))) ->  | L47: =IF(COUNTIF(M$3:M47,M47)=1,MAX(L$2:L46)+1,"") ->  | M47: Лист ГВЛ 10мм
C48: Лента армирующая | D48: м.п. | E48: 3.2 | F48: 1 | H48: =IF(ROW()-ROW(FolowList)+1>ROWS(WorkLisr)-COUNTBLANK(WorkLisr),"",INDIRECT(ADDRESS(SMALL((IF(WorkLisr<>"",ROW(WorkLisr),ROW()+ROWS(WorkLisr))),ROW()-ROW(FolowList)+1),COLUMN(WorkLisr),4))) ->  | L48: =IF(COUNTIF(M$3:M48,M48)=1,MAX(L$2:L47)+1,"") ->  | M48: Лента армирующая
H49: =IF(ROW()-ROW(FolowList)+1>ROWS(WorkLisr)-COUNTBLANK(WorkLisr),"",INDIRECT(ADDRESS(SMALL((IF(WorkLisr<>"",ROW(WorkLisr),ROW()+ROWS(WorkLisr))),ROW()-ROW(FolowList)+1),COLUMN(WorkLisr),4))) ->  | L49: =IF(COUNTIF(M$3:M49,M49)=1,MAX(L$2:L48)+1,"") -> 
H50: =IF(ROW()-ROW(FolowList)+1>ROWS(WorkLisr)-COUNTBLANK(WorkLisr),"",INDIRECT(ADDRESS(SMALL((IF(WorkLisr<>"",ROW(WorkLisr),ROW()+ROWS(WorkLisr))),ROW()-ROW(FolowList)+1),COLUMN(WorkLisr),4))) ->  | L50: =IF(COUNTIF(M$3:M50,M50)=1,MAX(L$2:L49)+1,"") -> 
H51: =IF(ROW()-ROW(FolowList)+1>ROWS(WorkLisr)-COUNTBLANK(WorkLisr),"",INDIRECT(ADDRESS(SMALL((IF(WorkLisr<>"",ROW(WorkLisr),ROW()+ROWS(WorkLisr))),ROW()-ROW(FolowList)+1),COLUMN(WorkLisr),4))) ->  | L51: =IF(COUNTIF(M$3:M51,M51)=1,MAX(L$2:L50)+1,"") -> 
H52: =IF(ROW()-ROW(FolowList)+1>ROWS(WorkLisr)-COUNTBLANK(WorkLisr),"",INDIRECT(ADDRESS(SMALL((IF(WorkLisr<>"",ROW(WorkLisr),ROW()+ROWS(WorkLisr))),ROW()-ROW(FolowList)+1),COLUMN(WorkLisr),4))) ->  | L52: =IF(COUNTIF(M$3:M52,M52)=1,MAX(L$2:L51)+1,"") -> 
H53: =IF(ROW()-ROW(FolowList)+1>ROWS(WorkLisr)-COUNTBLANK(WorkLisr),"",INDIRECT(ADDRESS(SMALL((IF(WorkLisr<>"",ROW(WorkLisr),ROW()+ROWS(WorkLisr))),ROW()-ROW(FolowList)+1),COLUMN(WorkLisr),4))) ->  | L53: =IF(COUNTIF(M$3:M53,M53)=1,MAX(L$2:L52)+1,"") -> 
H54: =IF(ROW()-ROW(FolowList)+1>ROWS(WorkLisr)-COUNTBLANK(WorkLisr),"",INDIRECT(ADDRESS(SMALL((IF(WorkLisr<>"",ROW(WorkLisr),ROW()+ROWS(WorkLisr))),ROW()-ROW(FolowList)+1),COLUMN(WorkLisr),4))) ->  | L54: =IF(COUNTIF(M$3:M54,M54)=1,MAX(L$2:L53)+1,"") -> 
H55: =IF(ROW()-ROW(FolowList)+1>ROWS(WorkLisr)-COUNTBLANK(WorkLisr),"",INDIRECT(ADDRESS(SMALL((IF(WorkLisr<>"",ROW(WorkLisr),ROW()+ROWS(WorkLisr))),ROW()-ROW(FolowList)+1),COLUMN(WorkLisr),4))) ->  | L55: =IF(COUNTIF(M$3:M55,M55)=1,MAX(L$2:L54)+1,"") -> 
H56: =IF(ROW()-ROW(FolowList)+1>ROWS(WorkLisr)-COUNTBLANK(WorkLisr),"",INDIRECT(ADDRESS(SMALL((IF(WorkLisr<>"",ROW(WorkLisr),ROW()+ROWS(WorkLisr))),ROW()-ROW(FolowList)+1),COLUMN(WorkLisr),4))) ->  | L56: =IF(COUNTIF(M$3:M56,M56)=1,MAX(L$2:L55)+1,"") -> 
H57: =IF(ROW()-ROW(FolowList)+1>ROWS(WorkLisr)-COUNTBLANK(WorkLisr),"",INDIRECT(ADDRESS(SMALL((IF(WorkLisr<>"",ROW(WorkLisr),ROW()+ROWS(WorkLisr))),ROW()-ROW(FolowList)+1),COLUMN(WorkLisr),4))) ->  | L57: =IF(COUNTIF(M$3:M57,M57)=1,MAX(L$2:L56)+1,"") -> 
H58: =IF(ROW()-ROW(FolowList)+1>ROWS(WorkLisr)-COUNTBLANK(WorkLisr),"",INDIRECT(ADDRESS(SMALL((IF(WorkLisr<>"",ROW(WorkLisr),ROW()+ROWS(WorkLisr))),ROW()-ROW(FolowList)+1),COLUMN(WorkLisr),4))) ->  | L58: =IF(COUNTIF(M$3:M58,M58)=1,MAX(L$2:L57)+1,"") -> 
H59: =IF(ROW()-ROW(FolowList)+1>ROWS(WorkLisr)-COUNTBLANK(WorkLisr),"",INDIRECT(ADDRESS(SMALL((IF(WorkLisr<>"",ROW(WorkLisr),ROW()+ROWS(WorkLisr))),ROW()-ROW(FolowList)+1),COLUMN(WorkLisr),4))) ->  | L59: =IF(COUNTIF(M$3:M59,M59)=1,MAX(L$2:L58)+1,"") -> 
H60: =IF(ROW()-ROW(FolowList)+1>ROWS(WorkLisr)-COUNTBLANK(WorkLisr),"",INDIRECT(ADDRESS(SMALL((IF(WorkLisr<>"",ROW(WorkLisr),ROW()+ROWS(WorkLisr))),ROW()-ROW(FolowList)+1),COLUMN(WorkLisr),4))) ->  | L60: =IF(COUNTIF(M$3:M60,M60)=1,MAX(L$2:L59)+1,"") -> 
H61: =IF(ROW()-ROW(FolowList)+1>ROWS(WorkLisr)-COUNTBLANK(WorkLisr),"",INDIRECT(ADDRESS(SMALL((IF(WorkLisr<>"",ROW(WorkLisr),ROW()+ROWS(WorkLisr))),ROW()-ROW(FolowList)+1),COLUMN(WorkLisr),4))) ->  | L61: =IF(COUNTIF(M$3:M61,M61)=1,MAX(L$2:L60)+1,"") -> 
H62: =IF(ROW()-ROW(FolowList)+1>ROWS(WorkLisr)-COUNTBLANK(WorkLisr),"",INDIRECT(ADDRESS(SMALL((IF(WorkLisr<>"",ROW(WorkLisr),ROW()+ROWS(WorkLisr))),ROW()-ROW(FolowList)+1),COLUMN(WorkLisr),4))) ->  | L62: =IF(COUNTIF(M$3:M62,M62)=1,MAX(L$2:L61)+1,"") -> 
H63: =IF(ROW()-ROW(FolowList)+1>ROWS(WorkLisr)-COUNTBLANK(WorkLisr),"",INDIRECT(ADDRESS(SMALL((IF(WorkLisr<>"",ROW(WorkLisr),ROW()+ROWS(WorkLisr))),ROW()-ROW(FolowList)+1),COLUMN(WorkLisr),4))) ->  | L63: =IF(COUNTIF(M$3:M63,M63)=1,MAX(L$2:L62)+1,"") -> 
H64: =IF(ROW()-ROW(FolowList)+1>ROWS(WorkLisr)-COUNTBLANK(WorkLisr),"",INDIRECT(ADDRESS(SMALL((IF(WorkLisr<>"",ROW(WorkLisr),ROW()+ROWS(WorkLisr))),ROW()-ROW(FolowList)+1),COLUMN(WorkLisr),4))) ->  | L64: =IF(COUNTIF(M$3:M64,M64)=1,MAX(L$2:L63)+1,"") -> 
H65: =IF(ROW()-ROW(FolowList)+1>ROWS(WorkLisr)-COUNTBLANK(WorkLisr),"",INDIRECT(ADDRESS(SMALL((IF(WorkLisr<>"",ROW(WorkLisr),ROW()+ROWS(WorkLisr))),ROW()-ROW(FolowList)+1),COLUMN(WorkLisr),4))) ->  | L65: =IF(COUNTIF(M$3:M65,M65)=1,MAX(L$2:L64)+1,"") -> 
H66: =IF(ROW()-ROW(FolowList)+1>ROWS(WorkLisr)-COUNTBLANK(WorkLisr),"",INDIRECT(ADDRESS(SMALL((IF(WorkLisr<>"",ROW(WorkLisr),ROW()+ROWS(WorkLisr))),ROW()-ROW(FolowList)+1),COLUMN(WorkLisr),4))) ->  | L66: =IF(COUNTIF(M$3:M66,M66)=1,MAX(L$2:L65)+1,"") -> 
H67: =IF(ROW()-ROW(FolowList)+1>ROWS(WorkLisr)-COUNTBLANK(WorkLisr),"",INDIRECT(ADDRESS(SMALL((IF(WorkLisr<>"",ROW(WorkLisr),ROW()+ROWS(WorkLisr))),ROW()-ROW(FolowList)+1),COLUMN(WorkLisr),4))) ->  | L67: =IF(COUNTIF(M$3:M67,M67)=1,MAX(L$2:L66)+1,"") -> 
H68: =IF(ROW()-ROW(FolowList)+1>ROWS(WorkLisr)-COUNTBLANK(WorkLisr),"",INDIRECT(ADDRESS(SMALL((IF(WorkLisr<>"",ROW(WorkLisr),ROW()+ROWS(WorkLisr))),ROW()-ROW(FolowList)+1),COLUMN(WorkLisr),4))) ->  | L68: =IF(COUNTIF(M$3:M68,M68)=1,MAX(L$2:L67)+1,"") ->  | M68: =IF(ISBLANK(C68),"",C68) -> 
H69: =IF(ROW()-ROW(FolowList)+1>ROWS(WorkLisr)-COUNTBLANK(WorkLisr),"",INDIRECT(ADDRESS(SMALL((IF(WorkLisr<>"",ROW(WorkLisr),ROW()+ROWS(WorkLisr))),ROW()-ROW(FolowList)+1),COLUMN(WorkLisr),4))) ->  | L69: =IF(COUNTIF(M$3:M69,M69)=1,MAX(L$2:L68)+1,"") -> 
H70: =IF(ROW()-ROW(FolowList)+1>ROWS(WorkLisr)-COUNTBLANK(WorkLisr),"",INDIRECT(ADDRESS(SMALL((IF(WorkLisr<>"",ROW(WorkLisr),ROW()+ROWS(WorkLisr))),ROW()-ROW(FolowList)+1),COLUMN(WorkLisr),4))) ->  | L70: =IF(COUNTIF(M$3:M70,M70)=1,MAX(L$2:L69)+1,"") -> 
H71: =IF(ROW()-ROW(FolowList)+1>ROWS(WorkLisr)-COUNTBLANK(WorkLisr),"",INDIRECT(ADDRESS(SMALL((IF(WorkLisr<>"",ROW(WorkLisr),ROW()+ROWS(WorkLisr))),ROW()-ROW(FolowList)+1),COLUMN(WorkLisr),4))) ->  | L71: =IF(COUNTIF(M$3:M71,M71)=1,MAX(L$2:L70)+1,"") -> 
H72: =IF(ROW()-ROW(FolowList)+1>ROWS(WorkLisr)-COUNTBLANK(WorkLisr),"",INDIRECT(ADDRESS(SMALL((IF(WorkLisr<>"",ROW(WorkLisr),ROW()+ROWS(WorkLisr))),ROW()-ROW(FolowList)+1),COLUMN(WorkLisr),4))) ->  | L72: =IF(COUNTIF(M$3:M72,M72)=1,MAX(L$2:L71)+1,"") -> 
H73: =IF(ROW()-ROW(FolowList)+1>ROWS(WorkLisr)-COUNTBLANK(WorkLisr),"",INDIRECT(ADDRESS(SMALL((IF(WorkLisr<>"",ROW(WorkLisr),ROW()+ROWS(WorkLisr))),ROW()-ROW(FolowList)+1),COLUMN(WorkLisr),4))) ->  | L73: =IF(COUNTIF(M$3:M73,M73)=1,MAX(L$2:L72)+1,"") -> 
H74: =IF(ROW()-ROW(FolowList)+1>ROWS(WorkLisr)-COUNTBLANK(WorkLisr),"",INDIRECT(ADDRESS(SMALL((IF(WorkLisr<>"",ROW(WorkLisr),ROW()+ROWS(WorkLisr))),ROW()-ROW(FolowList)+1),COLUMN(WorkLisr),4))) ->  | L74: =IF(COUNTIF(M$3:M74,M74)=1,MAX(L$2:L73)+1,"") -> 
H75: =IF(ROW()-ROW(FolowList)+1>ROWS(WorkLisr)-COUNTBLANK(WorkLisr),"",INDIRECT(ADDRESS(SMALL((IF(WorkLisr<>"",ROW(WorkLisr),ROW()+ROWS(WorkLisr))),ROW()-ROW(FolowList)+1),COLUMN(WorkLisr),4))) ->  | L75: =IF(COUNTIF(M$3:M75,M75)=1,MAX(L$2:L74)+1,"") -> 
H76: =IF(ROW()-ROW(FolowList)+1>ROWS(WorkLisr)-COUNTBLANK(WorkLisr),"",INDIRECT(ADDRESS(SMALL((IF(WorkLisr<>"",ROW(WorkLisr),ROW()+ROWS(WorkLisr))),ROW()-ROW(FolowList)+1),COLUMN(WorkLisr),4))) ->  | L76: =IF(COUNTIF(M$3:M76,M76)=1,MAX(L$2:L75)+1,"") -> 
H77: =IF(ROW()-ROW(FolowList)+1>ROWS(WorkLisr)-COUNTBLANK(WorkLisr),"",INDIRECT(ADDRESS(SMALL((IF(WorkLisr<>"",ROW(WorkLisr),ROW()+ROWS(WorkLisr))),ROW()-ROW(FolowList)+1),COLUMN(WorkLisr),4))) ->  | L77: =IF(COUNTIF(M$3:M77,M77)=1,MAX(L$2:L76)+1,"") -> 
H78: =IF(ROW()-ROW(FolowList)+1>ROWS(WorkLisr)-COUNTBLANK(WorkLisr),"",INDIRECT(ADDRESS(SMALL((IF(WorkLisr<>"",ROW(WorkLisr),ROW()+ROWS(WorkLisr))),ROW()-ROW(FolowList)+1),COLUMN(WorkLisr),4))) ->  | L78: =IF(COUNTIF(M$3:M78,M78)=1,MAX(L$2:L77)+1,"") -> 
H79: =IF(ROW()-ROW(FolowList)+1>ROWS(WorkLisr)-COUNTBLANK(WorkLisr),"",INDIRECT(ADDRESS(SMALL((IF(WorkLisr<>"",ROW(WorkLisr),ROW()+ROWS(WorkLisr))),ROW()-ROW(FolowList)+1),COLUMN(WorkLisr),4))) ->  | L79: =IF(COUNTIF(M$3:M79,M79)=1,MAX(L$2:L78)+1,"") -> 
H80: =IF(ROW()-ROW(FolowList)+1>ROWS(WorkLisr)-COUNTBLANK(WorkLisr),"",INDIRECT(ADDRESS(SMALL((IF(WorkLisr<>"",ROW(WorkLisr),ROW()+ROWS(WorkLisr))),ROW()-ROW(FolowList)+1),COLUMN(WorkLisr),4))) ->  | L80: =IF(COUNTIF(M$3:M80,M80)=1,MAX(L$2:L79)+1,"") -> 
H81: =IF(ROW()-ROW(FolowList)+1>ROWS(WorkLisr)-COUNTBLANK(WorkLisr),"",INDIRECT(ADDRESS(SMALL((IF(WorkLisr<>"",ROW(WorkLisr),ROW()+ROWS(WorkLisr))),ROW()-ROW(FolowList)+1),COLUMN(WorkLisr),4))) ->  | L81: =IF(COUNTIF(M$3:M81,M81)=1,MAX(L$2:L80)+1,"") -> 
H82: =IF(ROW()-ROW(FolowList)+1>ROWS(WorkLisr)-COUNTBLANK(WorkLisr),"",INDIRECT(ADDRESS(SMALL((IF(WorkLisr<>"",ROW(WorkLisr),ROW()+ROWS(WorkLisr))),ROW()-ROW(FolowList)+1),COLUMN(WorkLisr),4))) ->  | L82: =IF(COUNTIF(M$3:M82,M82)=1,MAX(L$2:L81)+1,"") -> 
H83: =IF(ROW()-ROW(FolowList)+1>ROWS(WorkLisr)-COUNTBLANK(WorkLisr),"",INDIRECT(ADDRESS(SMALL((IF(WorkLisr<>"",ROW(WorkLisr),ROW()+ROWS(WorkLisr))),ROW()-ROW(FolowList)+1),COLUMN(WorkLisr),4))) ->  | L83: =IF(COUNTIF(M$3:M83,M83)=1,MAX(L$2:L82)+1,"") -> 
H84: =IF(ROW()-ROW(FolowList)+1>ROWS(WorkLisr)-COUNTBLANK(WorkLisr),"",INDIRECT(ADDRESS(SMALL((IF(WorkLisr<>"",ROW(WorkLisr),ROW()+ROWS(WorkLisr))),ROW()-ROW(FolowList)+1),COLUMN(WorkLisr),4))) ->  | L84: =IF(COUNTIF(M$3:M84,M84)=1,MAX(L$2:L83)+1,"") -> 
H85: =IF(ROW()-ROW(FolowList)+1>ROWS(WorkLisr)-COUNTBLANK(WorkLisr),"",INDIRECT(ADDRESS(SMALL((IF(WorkLisr<>"",ROW(WorkLisr),ROW()+ROWS(WorkLisr))),ROW()-ROW(FolowList)+1),COLUMN(WorkLisr),4))) ->  | L85: =IF(COUNTIF(M$3:M85,M85)=1,MAX(L$2:L84)+1,"") -> 
H86: =IF(ROW()-ROW(FolowList)+1>ROWS(WorkLisr)-COUNTBLANK(WorkLisr),"",INDIRECT(ADDRESS(SMALL((IF(WorkLisr<>"",ROW(WorkLisr),ROW()+ROWS(WorkLisr))),ROW()-ROW(FolowList)+1),COLUMN(WorkLisr),4))) ->  | L86: =IF(COUNTIF(M$3:M86,M86)=1,MAX(L$2:L85)+1,"") -> 
H87: =IF(ROW()-ROW(FolowList)+1>ROWS(WorkLisr)-COUNTBLANK(WorkLisr),"",INDIRECT(ADDRESS(SMALL((IF(WorkLisr<>"",ROW(WorkLisr),ROW()+ROWS(WorkLisr))),ROW()-ROW(FolowList)+1),COLUMN(WorkLisr),4))) ->  | L87: =IF(COUNTIF(M$3:M87,M87)=1,MAX(L$2:L86)+1,"") -> 
H88: =IF(ROW()-ROW(FolowList)+1>ROWS(WorkLisr)-COUNTBLANK(WorkLisr),"",INDIRECT(ADDRESS(SMALL((IF(WorkLisr<>"",ROW(WorkLisr),ROW()+ROWS(WorkLisr))),ROW()-ROW(FolowList)+1),COLUMN(WorkLisr),4))) ->  | L88: =IF(COUNTIF(M$3:M88,M88)=1,MAX(L$2:L87)+1,"") -> 
H89: =IF(ROW()-ROW(FolowList)+1>ROWS(WorkLisr)-COUNTBLANK(WorkLisr),"",INDIRECT(ADDRESS(SMALL((IF(WorkLisr<>"",ROW(WorkLisr),ROW()+ROWS(WorkLisr))),ROW()-ROW(FolowList)+1),COLUMN(WorkLisr),4))) ->  | L89: =IF(COUNTIF(M$3:M89,M89)=1,MAX(L$2:L88)+1,"") -> 
H90: =IF(ROW()-ROW(FolowList)+1>ROWS(WorkLisr)-COUNTBLANK(WorkLisr),"",INDIRECT(ADDRESS(SMALL((IF(WorkLisr<>"",ROW(WorkLisr),ROW()+ROWS(WorkLisr))),ROW()-ROW(FolowList)+1),COLUMN(WorkLisr),4))) ->  | L90: =IF(COUNTIF(M$3:M90,M90)=1,MAX(L$2:L89)+1,"") -> 
H91: =IF(ROW()-ROW(FolowList)+1>ROWS(WorkLisr)-COUNTBLANK(WorkLisr),"",INDIRECT(ADDRESS(SMALL((IF(WorkLisr<>"",ROW(WorkLisr),ROW()+ROWS(WorkLisr))),ROW()-ROW(FolowList)+1),COLUMN(WorkLisr),4))) ->  | L91: =IF(COUNTIF(M$3:M91,M91)=1,MAX(L$2:L90)+1,"") -> 
H92: =IF(ROW()-ROW(FolowList)+1>ROWS(WorkLisr)-COUNTBLANK(WorkLisr),"",INDIRECT(ADDRESS(SMALL((IF(WorkLisr<>"",ROW(WorkLisr),ROW()+ROWS(WorkLisr))),ROW()-ROW(FolowList)+1),COLUMN(WorkLisr),4))) ->  | L92: =IF(COUNTIF(M$3:M92,M92)=1,MAX(L$2:L91)+1,"") -> 
H93: =IF(ROW()-ROW(FolowList)+1>ROWS(WorkLisr)-COUNTBLANK(WorkLisr),"",INDIRECT(ADDRESS(SMALL((IF(WorkLisr<>"",ROW(WorkLisr),ROW()+ROWS(WorkLisr))),ROW()-ROW(FolowList)+1),COLUMN(WorkLisr),4))) ->  | L93: =IF(COUNTIF(M$3:M93,M93)=1,MAX(L$2:L92)+1,"") -> 
H94: =IF(ROW()-ROW(FolowList)+1>ROWS(WorkLisr)-COUNTBLANK(WorkLisr),"",INDIRECT(ADDRESS(SMALL((IF(WorkLisr<>"",ROW(WorkLisr),ROW()+ROWS(WorkLisr))),ROW()-ROW(FolowList)+1),COLUMN(WorkLisr),4))) ->  | L94: =IF(COUNTIF(M$3:M94,M94)=1,MAX(L$2:L93)+1,"") -> 
H95: =IF(ROW()-ROW(FolowList)+1>ROWS(WorkLisr)-COUNTBLANK(WorkLisr),"",INDIRECT(ADDRESS(SMALL((IF(WorkLisr<>"",ROW(WorkLisr),ROW()+ROWS(WorkLisr))),ROW()-ROW(FolowList)+1),COLUMN(WorkLisr),4))) ->  | L95: =IF(COUNTIF(M$3:M95,M95)=1,MAX(L$2:L94)+1,"") -> 
H96: =IF(ROW()-ROW(FolowList)+1>ROWS(WorkLisr)-COUNTBLANK(WorkLisr),"",INDIRECT(ADDRESS(SMALL((IF(WorkLisr<>"",ROW(WorkLisr),ROW()+ROWS(WorkLisr))),ROW()-ROW(FolowList)+1),COLUMN(WorkLisr),4))) ->  | L96: =IF(COUNTIF(M$3:M96,M96)=1,MAX(L$2:L95)+1,"") -> 
H97: =IF(ROW()-ROW(FolowList)+1>ROWS(WorkLisr)-COUNTBLANK(WorkLisr),"",INDIRECT(ADDRESS(SMALL((IF(WorkLisr<>"",ROW(WorkLisr),ROW()+ROWS(WorkLisr))),ROW()-ROW(FolowList)+1),COLUMN(WorkLisr),4))) ->  | L97: =IF(COUNTIF(M$3:M97,M97)=1,MAX(L$2:L96)+1,"") -> 
H98: =IF(ROW()-ROW(FolowList)+1>ROWS(WorkLisr)-COUNTBLANK(WorkLisr),"",INDIRECT(ADDRESS(SMALL((IF(WorkLisr<>"",ROW(WorkLisr),ROW()+ROWS(WorkLisr))),ROW()-ROW(FolowList)+1),COLUMN(WorkLisr),4))) ->  | L98: =IF(COUNTIF(M$3:M98,M98)=1,MAX(L$2:L97)+1,"") -> 
H99: =IF(ROW()-ROW(FolowList)+1>ROWS(WorkLisr)-COUNTBLANK(WorkLisr),"",INDIRECT(ADDRESS(SMALL((IF(WorkLisr<>"",ROW(WorkLisr),ROW()+ROWS(WorkLisr))),ROW()-ROW(FolowList)+1),COLUMN(WorkLisr),4))) ->  | L99: =IF(COUNTIF(M$3:M99,M99)=1,MAX(L$2:L98)+1,"") -> 
H566: =IF(ROW()-ROW(FolowList)+1>ROWS(WorkLisr)-COUNTBLANK(WorkLisr),"",INDIRECT(ADDRESS(SMALL((IF(WorkLisr<>"",ROW(WorkLisr),ROW()+ROWS(WorkLisr))),ROW()-ROW(FolowList)+1),COLUMN(WorkLisr),4))) -> 
H567: =IF(ROW()-ROW(FolowList)+1>ROWS(WorkLisr)-COUNTBLANK(WorkLisr),"",INDIRECT(ADDRESS(SMALL((IF(WorkLisr<>"",ROW(WorkLisr),ROW()+ROWS(WorkLisr))),ROW()-ROW(FolowList)+1),COLUMN(WorkLisr),4))) -> 
H568: =IF(ROW()-ROW(FolowList)+1>ROWS(WorkLisr)-COUNTBLANK(WorkLisr),"",INDIRECT(ADDRESS(SMALL((IF(WorkLisr<>"",ROW(WorkLisr),ROW()+ROWS(WorkLisr))),ROW()-ROW(FolowList)+1),COLUMN(WorkLisr),4))) -> 
H569: =IF(ROW()-ROW(FolowList)+1>ROWS(WorkLisr)-COUNTBLANK(WorkLisr),"",INDIRECT(ADDRESS(SMALL((IF(WorkLisr<>"",ROW(WorkLisr),ROW()+ROWS(WorkLisr))),ROW()-ROW(FolowList)+1),COLUMN(WorkLisr),4))) -> 
H570: =IF(ROW()-ROW(FolowList)+1>ROWS(WorkLisr)-COUNTBLANK(WorkLisr),"",INDIRECT(ADDRESS(SMALL((IF(WorkLisr<>"",ROW(WorkLisr),ROW()+ROWS(WorkLisr))),ROW()-ROW(FolowList)+1),COLUMN(WorkLisr),4))) -> 
H571: =IF(ROW()-ROW(FolowList)+1>ROWS(WorkLisr)-COUNTBLANK(WorkLisr),"",INDIRECT(ADDRESS(SMALL((IF(WorkLisr<>"",ROW(WorkLisr),ROW()+ROWS(WorkLisr))),ROW()-ROW(FolowList)+1),COLUMN(WorkLisr),4))) -> 
H572: =IF(ROW()-ROW(FolowList)+1>ROWS(WorkLisr)-COUNTBLANK(WorkLisr),"",INDIRECT(ADDRESS(SMALL((IF(WorkLisr<>"",ROW(WorkLisr),ROW()+ROWS(WorkLisr))),ROW()-ROW(FolowList)+1),COLUMN(WorkLisr),4))) -> 
H573: =IF(ROW()-ROW(FolowList)+1>ROWS(WorkLisr)-COUNTBLANK(WorkLisr),"",INDIRECT(ADDRESS(SMALL((IF(WorkLisr<>"",ROW(WorkLisr),ROW()+ROWS(WorkLisr))),ROW()-ROW(FolowList)+1),COLUMN(WorkLisr),4))) -> 
H574: =IF(ROW()-ROW(FolowList)+1>ROWS(WorkLisr)-COUNTBLANK(WorkLisr),"",INDIRECT(ADDRESS(SMALL((IF(WorkLisr<>"",ROW(WorkLisr),ROW()+ROWS(WorkLisr))),ROW()-ROW(FolowList)+1),COLUMN(WorkLisr),4))) -> 
H575: =IF(ROW()-ROW(FolowList)+1>ROWS(WorkLisr)-COUNTBLANK(WorkLisr),"",INDIRECT(ADDRESS(SMALL((IF(WorkLisr<>"",ROW(WorkLisr),ROW()+ROWS(WorkLisr))),ROW()-ROW(FolowList)+1),COLUMN(WorkLisr),4))) -> 
H576: =IF(ROW()-ROW(FolowList)+1>ROWS(WorkLisr)-COUNTBLANK(WorkLisr),"",INDIRECT(ADDRESS(SMALL((IF(WorkLisr<>"",ROW(WorkLisr),ROW()+ROWS(WorkLisr))),ROW()-ROW(FolowList)+1),COLUMN(WorkLisr),4))) -> 
H577: =IF(ROW()-ROW(FolowList)+1>ROWS(WorkLisr)-COUNTBLANK(WorkLisr),"",INDIRECT(ADDRESS(SMALL((IF(WorkLisr<>"",ROW(WorkLisr),ROW()+ROWS(WorkLisr))),ROW()-ROW(FolowList)+1),COLUMN(WorkLisr),4))) -> 
H578: =IF(ROW()-ROW(FolowList)+1>ROWS(WorkLisr)-COUNTBLANK(WorkLisr),"",INDIRECT(ADDRESS(SMALL((IF(WorkLisr<>"",ROW(WorkLisr),ROW()+ROWS(WorkLisr))),ROW()-ROW(FolowList)+1),COLUMN(WorkLisr),4))) -> 
H579: =IF(ROW()-ROW(FolowList)+1>ROWS(WorkLisr)-COUNTBLANK(WorkLisr),"",INDIRECT(ADDRESS(SMALL((IF(WorkLisr<>"",ROW(WorkLisr),ROW()+ROWS(WorkLisr))),ROW()-ROW(FolowList)+1),COLUMN(WorkLisr),4))) -> 
H580: =IF(ROW()-ROW(FolowList)+1>ROWS(WorkLisr)-COUNTBLANK(WorkLisr),"",INDIRECT(ADDRESS(SMALL((IF(WorkLisr<>"",ROW(WorkLisr),ROW()+ROWS(WorkLisr))),ROW()-ROW(FolowList)+1),COLUMN(WorkLisr),4))) -> 
H581: =IF(ROW()-ROW(FolowList)+1>ROWS(WorkLisr)-COUNTBLANK(WorkLisr),"",INDIRECT(ADDRESS(SMALL((IF(WorkLisr<>"",ROW(WorkLisr),ROW()+ROWS(WorkLisr))),ROW()-ROW(FolowList)+1),COLUMN(WorkLisr),4))) -> 
H582: =IF(ROW()-ROW(FolowList)+1>ROWS(WorkLisr)-COUNTBLANK(WorkLisr),"",INDIRECT(ADDRESS(SMALL((IF(WorkLisr<>"",ROW(WorkLisr),ROW()+ROWS(WorkLisr))),ROW()-ROW(FolowList)+1),COLUMN(WorkLisr),4))) -> 
H583: =IF(ROW()-ROW(FolowList)+1>ROWS(WorkLisr)-COUNTBLANK(WorkLisr),"",INDIRECT(ADDRESS(SMALL((IF(WorkLisr<>"",ROW(WorkLisr),ROW()+ROWS(WorkLisr))),ROW()-ROW(FolowList)+1),COLUMN(WorkLisr),4))) -> 
H584: =IF(ROW()-ROW(FolowList)+1>ROWS(WorkLisr)-COUNTBLANK(WorkLisr),"",INDIRECT(ADDRESS(SMALL((IF(WorkLisr<>"",ROW(WorkLisr),ROW()+ROWS(WorkLisr))),ROW()-ROW(FolowList)+1),COLUMN(WorkLisr),4))) -> 
H585: =IF(ROW()-ROW(FolowList)+1>ROWS(WorkLisr)-COUNTBLANK(WorkLisr),"",INDIRECT(ADDRESS(SMALL((IF(WorkLisr<>"",ROW(WorkLisr),ROW()+ROWS(WorkLisr))),ROW()-ROW(FolowList)+1),COLUMN(WorkLisr),4))) -> 
H586: =IF(ROW()-ROW(FolowList)+1>ROWS(WorkLisr)-COUNTBLANK(WorkLisr),"",INDIRECT(ADDRESS(SMALL((IF(WorkLisr<>"",ROW(WorkLisr),ROW()+ROWS(WorkLisr))),ROW()-ROW(FolowList)+1),COLUMN(WorkLisr),4))) -> 
H587: =IF(ROW()-ROW(FolowList)+1>ROWS(WorkLisr)-COUNTBLANK(WorkLisr),"",INDIRECT(ADDRESS(SMALL((IF(WorkLisr<>"",ROW(WorkLisr),ROW()+ROWS(WorkLisr))),ROW()-ROW(FolowList)+1),COLUMN(WorkLisr),4))) -> 
H588: =IF(ROW()-ROW(FolowList)+1>ROWS(WorkLisr)-COUNTBLANK(WorkLisr),"",INDIRECT(ADDRESS(SMALL((IF(WorkLisr<>"",ROW(WorkLisr),ROW()+ROWS(WorkLisr))),ROW()-ROW(FolowList)+1),COLUMN(WorkLisr),4))) -> 
H589: =IF(ROW()-ROW(FolowList)+1>ROWS(WorkLisr)-COUNTBLANK(WorkLisr),"",INDIRECT(ADDRESS(SMALL((IF(WorkLisr<>"",ROW(WorkLisr),ROW()+ROWS(WorkLisr))),ROW()-ROW(FolowList)+1),COLUMN(WorkLisr),4))) -> 
H590: =IF(ROW()-ROW(FolowList)+1>ROWS(WorkLisr)-COUNTBLANK(WorkLisr),"",INDIRECT(ADDRESS(SMALL((IF(WorkLisr<>"",ROW(WorkLisr),ROW()+ROWS(WorkLisr))),ROW()-ROW(FolowList)+1),COLUMN(WorkLisr),4))) -> 
H591: =IF(ROW()-ROW(FolowList)+1>ROWS(WorkLisr)-COUNTBLANK(WorkLisr),"",INDIRECT(ADDRESS(SMALL((IF(WorkLisr<>"",ROW(WorkLisr),ROW()+ROWS(WorkLisr))),ROW()-ROW(FolowList)+1),COLUMN(WorkLisr),4))) -> 
H592: =IF(ROW()-ROW(FolowList)+1>ROWS(WorkLisr)-COUNTBLANK(WorkLisr),"",INDIRECT(ADDRESS(SMALL((IF(WorkLisr<>"",ROW(WorkLisr),ROW()+ROWS(WorkLisr))),ROW()-ROW(FolowList)+1),COLUMN(WorkLisr),4))) -> 
H593: =IF(ROW()-ROW(FolowList)+1>ROWS(WorkLisr)-COUNTBLANK(WorkLisr),"",INDIRECT(ADDRESS(SMALL((IF(WorkLisr<>"",ROW(WorkLisr),ROW()+ROWS(WorkLisr))),ROW()-ROW(FolowList)+1),COLUMN(WorkLisr),4))) -> 
H594: =IF(ROW()-ROW(FolowList)+1>ROWS(WorkLisr)-COUNTBLANK(WorkLisr),"",INDIRECT(ADDRESS(SMALL((IF(WorkLisr<>"",ROW(WorkLisr),ROW()+ROWS(WorkLisr))),ROW()-ROW(FolowList)+1),COLUMN(WorkLisr),4))) -> 
H595: =IF(ROW()-ROW(FolowList)+1>ROWS(WorkLisr)-COUNTBLANK(WorkLisr),"",INDIRECT(ADDRESS(SMALL((IF(WorkLisr<>"",ROW(WorkLisr),ROW()+ROWS(WorkLisr))),ROW()-ROW(FolowList)+1),COLUMN(WorkLisr),4))) -> 
H596: =IF(ROW()-ROW(FolowList)+1>ROWS(WorkLisr)-COUNTBLANK(WorkLisr),"",INDIRECT(ADDRESS(SMALL((IF(WorkLisr<>"",ROW(WorkLisr),ROW()+ROWS(WorkLisr))),ROW()-ROW(FolowList)+1),COLUMN(WorkLisr),4))) -> 
H597: =IF(ROW()-ROW(FolowList)+1>ROWS(WorkLisr)-COUNTBLANK(WorkLisr),"",INDIRECT(ADDRESS(SMALL((IF(WorkLisr<>"",ROW(WorkLisr),ROW()+ROWS(WorkLisr))),ROW()-ROW(FolowList)+1),COLUMN(WorkLisr),4))) -> 
H598: =IF(ROW()-ROW(FolowList)+1>ROWS(WorkLisr)-COUNTBLANK(WorkLisr),"",INDIRECT(ADDRESS(SMALL((IF(WorkLisr<>"",ROW(WorkLisr),ROW()+ROWS(WorkLisr))),ROW()-ROW(FolowList)+1),COLUMN(WorkLisr),4))) -> 
H599: =IF(ROW()-ROW(FolowList)+1>ROWS(WorkLisr)-COUNTBLANK(WorkLisr),"",INDIRECT(ADDRESS(SMALL((IF(WorkLisr<>"",ROW(WorkLisr),ROW()+ROWS(WorkLisr))),ROW()-ROW(FolowList)+1),COLUMN(WorkLisr),4))) -> 
H600: =IF(ROW()-ROW(FolowList)+1>ROWS(WorkLisr)-COUNTBLANK(WorkLisr),"",INDIRECT(ADDRESS(SMALL((IF(WorkLisr<>"",ROW(WorkLisr),ROW()+ROWS(WorkLisr))),ROW()-ROW(FolowList)+1),COLUMN(WorkLisr),4))) -> 
H601: =IF(ROW()-ROW(FolowList)+1>ROWS(WorkLisr)-COUNTBLANK(WorkLisr),"",INDIRECT(ADDRESS(SMALL((IF(WorkLisr<>"",ROW(WorkLisr),ROW()+ROWS(WorkLisr))),ROW()-ROW(FolowList)+1),COLUMN(WorkLisr),4))) -> 
H602: =IF(ROW()-ROW(FolowList)+1>ROWS(WorkLisr)-COUNTBLANK(WorkLisr),"",INDIRECT(ADDRESS(SMALL((IF(WorkLisr<>"",ROW(WorkLisr),ROW()+ROWS(WorkLisr))),ROW()-ROW(FolowList)+1),COLUMN(WorkLisr),4))) -> 
H603: =IF(ROW()-ROW(FolowList)+1>ROWS(WorkLisr)-COUNTBLANK(WorkLisr),"",INDIRECT(ADDRESS(SMALL((IF(WorkLisr<>"",ROW(WorkLisr),ROW()+ROWS(WorkLisr))),ROW()-ROW(FolowList)+1),COLUMN(WorkLisr),4))) -> 
H604: =IF(ROW()-ROW(FolowList)+1>ROWS(WorkLisr)-COUNTBLANK(WorkLisr),"",INDIRECT(ADDRESS(SMALL((IF(WorkLisr<>"",ROW(WorkLisr),ROW()+ROWS(WorkLisr))),ROW()-ROW(FolowList)+1),COLUMN(WorkLisr),4))) -> 
H605: =IF(ROW()-ROW(FolowList)+1>ROWS(WorkLisr)-COUNTBLANK(WorkLisr),"",INDIRECT(ADDRESS(SMALL((IF(WorkLisr<>"",ROW(WorkLisr),ROW()+ROWS(WorkLisr))),ROW()-ROW(FolowList)+1),COLUMN(WorkLisr),4))) -> 
H606: =IF(ROW()-ROW(FolowList)+1>ROWS(WorkLisr)-COUNTBLANK(WorkLisr),"",INDIRECT(ADDRESS(SMALL((IF(WorkLisr<>"",ROW(WorkLisr),ROW()+ROWS(WorkLisr))),ROW()-ROW(FolowList)+1),COLUMN(WorkLisr),4))) -> 
H607: =IF(ROW()-ROW(FolowList)+1>ROWS(WorkLisr)-COUNTBLANK(WorkLisr),"",INDIRECT(ADDRESS(SMALL((IF(WorkLisr<>"",ROW(WorkLisr),ROW()+ROWS(WorkLisr))),ROW()-ROW(FolowList)+1),COLUMN(WorkLisr),4))) -> 
H608: =IF(ROW()-ROW(FolowList)+1>ROWS(WorkLisr)-COUNTBLANK(WorkLisr),"",INDIRECT(ADDRESS(SMALL((IF(WorkLisr<>"",ROW(WorkLisr),ROW()+ROWS(WorkLisr))),ROW()-ROW(FolowList)+1),COLUMN(WorkLisr),4))) -> 
H609: =IF(ROW()-ROW(FolowList)+1>ROWS(WorkLisr)-COUNTBLANK(WorkLisr),"",INDIRECT(ADDRESS(SMALL((IF(WorkLisr<>"",ROW(WorkLisr),ROW()+ROWS(WorkLisr))),ROW()-ROW(FolowList)+1),COLUMN(WorkLisr),4))) -> 
H610: =IF(ROW()-ROW(FolowList)+1>ROWS(WorkLisr)-COUNTBLANK(WorkLisr),"",INDIRECT(ADDRESS(SMALL((IF(WorkLisr<>"",ROW(WorkLisr),ROW()+ROWS(WorkLisr))),ROW()-ROW(FolowList)+1),COLUMN(WorkLisr),4))) -> 
H611: =IF(ROW()-ROW(FolowList)+1>ROWS(WorkLisr)-COUNTBLANK(WorkLisr),"",INDIRECT(ADDRESS(SMALL((IF(WorkLisr<>"",ROW(WorkLisr),ROW()+ROWS(WorkLisr))),ROW()-ROW(FolowList)+1),COLUMN(WorkLisr),4))) -> 
H612: =IF(ROW()-ROW(FolowList)+1>ROWS(WorkLisr)-COUNTBLANK(WorkLisr),"",INDIRECT(ADDRESS(SMALL((IF(WorkLisr<>"",ROW(WorkLisr),ROW()+ROWS(WorkLisr))),ROW()-ROW(FolowList)+1),COLUMN(WorkLisr),4))) -> 
H613: =IF(ROW()-ROW(FolowList)+1>ROWS(WorkLisr)-COUNTBLANK(WorkLisr),"",INDIRECT(ADDRESS(SMALL((IF(WorkLisr<>"",ROW(WorkLisr),ROW()+ROWS(WorkLisr))),ROW()-ROW(FolowList)+1),COLUMN(WorkLisr),4))) -> 
H614: =IF(ROW()-ROW(FolowList)+1>ROWS(WorkLisr)-COUNTBLANK(WorkLisr),"",INDIRECT(ADDRESS(SMALL((IF(WorkLisr<>"",ROW(WorkLisr),ROW()+ROWS(WorkLisr))),ROW()-ROW(FolowList)+1),COLUMN(WorkLisr),4))) -> 
H615: =IF(ROW()-ROW(FolowList)+1>ROWS(WorkLisr)-COUNTBLANK(WorkLisr),"",INDIRECT(ADDRESS(SMALL((IF(WorkLisr<>"",ROW(WorkLisr),ROW()+ROWS(WorkLisr))),ROW()-ROW(FolowList)+1),COLUMN(WorkLisr),4))) -> 
H616: =IF(ROW()-ROW(FolowList)+1>ROWS(WorkLisr)-COUNTBLANK(WorkLisr),"",INDIRECT(ADDRESS(SMALL((IF(WorkLisr<>"",ROW(WorkLisr),ROW()+ROWS(WorkLisr))),ROW()-ROW(FolowList)+1),COLUMN(WorkLisr),4))) -> 
H617: =IF(ROW()-ROW(FolowList)+1>ROWS(WorkLisr)-COUNTBLANK(WorkLisr),"",INDIRECT(ADDRESS(SMALL((IF(WorkLisr<>"",ROW(WorkLisr),ROW()+ROWS(WorkLisr))),ROW()-ROW(FolowList)+1),COLUMN(WorkLisr),4))) -> 
H618: =IF(ROW()-ROW(FolowList)+1>ROWS(WorkLisr)-COUNTBLANK(WorkLisr),"",INDIRECT(ADDRESS(SMALL((IF(WorkLisr<>"",ROW(WorkLisr),ROW()+ROWS(WorkLisr))),ROW()-ROW(FolowList)+1),COLUMN(WorkLisr),4))) -> 
H619: =IF(ROW()-ROW(FolowList)+1>ROWS(WorkLisr)-COUNTBLANK(WorkLisr),"",INDIRECT(ADDRESS(SMALL((IF(WorkLisr<>"",ROW(WorkLisr),ROW()+ROWS(WorkLisr))),ROW()-ROW(FolowList)+1),COLUMN(WorkLisr),4))) -> 
H620: =IF(ROW()-ROW(FolowList)+1>ROWS(WorkLisr)-COUNTBLANK(WorkLisr),"",INDIRECT(ADDRESS(SMALL((IF(WorkLisr<>"",ROW(WorkLisr),ROW()+ROWS(WorkLisr))),ROW()-ROW(FolowList)+1),COLUMN(WorkLisr),4))) -> 
H621: =IF(ROW()-ROW(FolowList)+1>ROWS(WorkLisr)-COUNTBLANK(WorkLisr),"",INDIRECT(ADDRESS(SMALL((IF(WorkLisr<>"",ROW(WorkLisr),ROW()+ROWS(WorkLisr))),ROW()-ROW(FolowList)+1),COLUMN(WorkLisr),4))) -> 
H622: =IF(ROW()-ROW(FolowList)+1>ROWS(WorkLisr)-COUNTBLANK(WorkLisr),"",INDIRECT(ADDRESS(SMALL((IF(WorkLisr<>"",ROW(WorkLisr),ROW()+ROWS(WorkLisr))),ROW()-ROW(FolowList)+1),COLUMN(WorkLisr),4))) -> 
H623: =IF(ROW()-ROW(FolowList)+1>ROWS(WorkLisr)-COUNTBLANK(WorkLisr),"",INDIRECT(ADDRESS(SMALL((IF(WorkLisr<>"",ROW(WorkLisr),ROW()+ROWS(WorkLisr))),ROW()-ROW(FolowList)+1),COLUMN(WorkLisr),4))) -> 
H624: =IF(ROW()-ROW(FolowList)+1>ROWS(WorkLisr)-COUNTBLANK(WorkLisr),"",INDIRECT(ADDRESS(SMALL((IF(WorkLisr<>"",ROW(WorkLisr),ROW()+ROWS(WorkLisr))),ROW()-ROW(FolowList)+1),COLUMN(WorkLisr),4))) -> 
H625: =IF(ROW()-ROW(FolowList)+1>ROWS(WorkLisr)-COUNTBLANK(WorkLisr),"",INDIRECT(ADDRESS(SMALL((IF(WorkLisr<>"",ROW(WorkLisr),ROW()+ROWS(WorkLisr))),ROW()-ROW(FolowList)+1),COLUMN(WorkLisr),4))) -> 
H626: =IF(ROW()-ROW(FolowList)+1>ROWS(WorkLisr)-COUNTBLANK(WorkLisr),"",INDIRECT(ADDRESS(SMALL((IF(WorkLisr<>"",ROW(WorkLisr),ROW()+ROWS(WorkLisr))),ROW()-ROW(FolowList)+1),COLUMN(WorkLisr),4))) -> 
H627: =IF(ROW()-ROW(FolowList)+1>ROWS(WorkLisr)-COUNTBLANK(WorkLisr),"",INDIRECT(ADDRESS(SMALL((IF(WorkLisr<>"",ROW(WorkLisr),ROW()+ROWS(WorkLisr))),ROW()-ROW(FolowList)+1),COLUMN(WorkLisr),4))) -> 
H628: =IF(ROW()-ROW(FolowList)+1>ROWS(WorkLisr)-COUNTBLANK(WorkLisr),"",INDIRECT(ADDRESS(SMALL((IF(WorkLisr<>"",ROW(WorkLisr),ROW()+ROWS(WorkLisr))),ROW()-ROW(FolowList)+1),COLUMN(WorkLisr),4))) -> 
H629: =IF(ROW()-ROW(FolowList)+1>ROWS(WorkLisr)-COUNTBLANK(WorkLisr),"",INDIRECT(ADDRESS(SMALL((IF(WorkLisr<>"",ROW(WorkLisr),ROW()+ROWS(WorkLisr))),ROW()-ROW(FolowList)+1),COLUMN(WorkLisr),4))) -> 
H630: =IF(ROW()-ROW(FolowList)+1>ROWS(WorkLisr)-COUNTBLANK(WorkLisr),"",INDIRECT(ADDRESS(SMALL((IF(WorkLisr<>"",ROW(WorkLisr),ROW()+ROWS(WorkLisr))),ROW()-ROW(FolowList)+1),COLUMN(WorkLisr),4))) -> 
H631: =IF(ROW()-ROW(FolowList)+1>ROWS(WorkLisr)-COUNTBLANK(WorkLisr),"",INDIRECT(ADDRESS(SMALL((IF(WorkLisr<>"",ROW(WorkLisr),ROW()+ROWS(WorkLisr))),ROW()-ROW(FolowList)+1),COLUMN(WorkLisr),4))) -> 
H632: =IF(ROW()-ROW(FolowList)+1>ROWS(WorkLisr)-COUNTBLANK(WorkLisr),"",INDIRECT(ADDRESS(SMALL((IF(WorkLisr<>"",ROW(WorkLisr),ROW()+ROWS(WorkLisr))),ROW()-ROW(FolowList)+1),COLUMN(WorkLisr),4))) -> 
H633: =IF(ROW()-ROW(FolowList)+1>ROWS(WorkLisr)-COUNTBLANK(WorkLisr),"",INDIRECT(ADDRESS(SMALL((IF(WorkLisr<>"",ROW(WorkLisr),ROW()+ROWS(WorkLisr))),ROW()-ROW(FolowList)+1),COLUMN(WorkLisr),4))) -> 
H634: =IF(ROW()-ROW(FolowList)+1>ROWS(WorkLisr)-COUNTBLANK(WorkLisr),"",INDIRECT(ADDRESS(SMALL((IF(WorkLisr<>"",ROW(WorkLisr),ROW()+ROWS(WorkLisr))),ROW()-ROW(FolowList)+1),COLUMN(WorkLisr),4))) -> 
H635: =IF(ROW()-ROW(FolowList)+1>ROWS(WorkLisr)-COUNTBLANK(WorkLisr),"",INDIRECT(ADDRESS(SMALL((IF(WorkLisr<>"",ROW(WorkLisr),ROW()+ROWS(WorkLisr))),ROW()-ROW(FolowList)+1),COLUMN(WorkLisr),4))) -> 
H636: =IF(ROW()-ROW(FolowList)+1>ROWS(WorkLisr)-COUNTBLANK(WorkLisr),"",INDIRECT(ADDRESS(SMALL((IF(WorkLisr<>"",ROW(WorkLisr),ROW()+ROWS(WorkLisr))),ROW()-ROW(FolowList)+1),COLUMN(WorkLisr),4))) -> 
H637: =IF(ROW()-ROW(FolowList)+1>ROWS(WorkLisr)-COUNTBLANK(WorkLisr),"",INDIRECT(ADDRESS(SMALL((IF(WorkLisr<>"",ROW(WorkLisr),ROW()+ROWS(WorkLisr))),ROW()-ROW(FolowList)+1),COLUMN(WorkLisr),4))) -> 
H638: =IF(ROW()-ROW(FolowList)+1>ROWS(WorkLisr)-COUNTBLANK(WorkLisr),"",INDIRECT(ADDRESS(SMALL((IF(WorkLisr<>"",ROW(WorkLisr),ROW()+ROWS(WorkLisr))),ROW()-ROW(FolowList)+1),COLUMN(WorkLisr),4))) -> 
H639: =IF(ROW()-ROW(FolowList)+1>ROWS(WorkLisr)-COUNTBLANK(WorkLisr),"",INDIRECT(ADDRESS(SMALL((IF(WorkLisr<>"",ROW(WorkLisr),ROW()+ROWS(WorkLisr))),ROW()-ROW(FolowList)+1),COLUMN(WorkLisr),4))) -> 
H640: =IF(ROW()-ROW(FolowList)+1>ROWS(WorkLisr)-COUNTBLANK(WorkLisr),"",INDIRECT(ADDRESS(SMALL((IF(WorkLisr<>"",ROW(WorkLisr),ROW()+ROWS(WorkLisr))),ROW()-ROW(FolowList)+1),COLUMN(WorkLisr),4))) -> 
H641: =IF(ROW()-ROW(FolowList)+1>ROWS(WorkLisr)-COUNTBLANK(WorkLisr),"",INDIRECT(ADDRESS(SMALL((IF(WorkLisr<>"",ROW(WorkLisr),ROW()+ROWS(WorkLisr))),ROW()-ROW(FolowList)+1),COLUMN(WorkLisr),4))) -> 
H642: =IF(ROW()-ROW(FolowList)+1>ROWS(WorkLisr)-COUNTBLANK(WorkLisr),"",INDIRECT(ADDRESS(SMALL((IF(WorkLisr<>"",ROW(WorkLisr),ROW()+ROWS(WorkLisr))),ROW()-ROW(FolowList)+1),COLUMN(WorkLisr),4))) -> 
H643: =IF(ROW()-ROW(FolowList)+1>ROWS(WorkLisr)-COUNTBLANK(WorkLisr),"",INDIRECT(ADDRESS(SMALL((IF(WorkLisr<>"",ROW(WorkLisr),ROW()+ROWS(WorkLisr))),ROW()-ROW(FolowList)+1),COLUMN(WorkLisr),4))) -> 
H644: =IF(ROW()-ROW(FolowList)+1>ROWS(WorkLisr)-COUNTBLANK(WorkLisr),"",INDIRECT(ADDRESS(SMALL((IF(WorkLisr<>"",ROW(WorkLisr),ROW()+ROWS(WorkLisr))),ROW()-ROW(FolowList)+1),COLUMN(WorkLisr),4))) -> 
H645: =IF(ROW()-ROW(FolowList)+1>ROWS(WorkLisr)-COUNTBLANK(WorkLisr),"",INDIRECT(ADDRESS(SMALL((IF(WorkLisr<>"",ROW(WorkLisr),ROW()+ROWS(WorkLisr))),ROW()-ROW(FolowList)+1),COLUMN(WorkLisr),4))) -> 
H646: =IF(ROW()-ROW(FolowList)+1>ROWS(WorkLisr)-COUNTBLANK(WorkLisr),"",INDIRECT(ADDRESS(SMALL((IF(WorkLisr<>"",ROW(WorkLisr),ROW()+ROWS(WorkLisr))),ROW()-ROW(FolowList)+1),COLUMN(WorkLisr),4))) -> 
H647: =IF(ROW()-ROW(FolowList)+1>ROWS(WorkLisr)-COUNTBLANK(WorkLisr),"",INDIRECT(ADDRESS(SMALL((IF(WorkLisr<>"",ROW(WorkLisr),ROW()+ROWS(WorkLisr))),ROW()-ROW(FolowList)+1),COLUMN(WorkLisr),4))) -> 
H648: =IF(ROW()-ROW(FolowList)+1>ROWS(WorkLisr)-COUNTBLANK(WorkLisr),"",INDIRECT(ADDRESS(SMALL((IF(WorkLisr<>"",ROW(WorkLisr),ROW()+ROWS(WorkLisr))),ROW()-ROW(FolowList)+1),COLUMN(WorkLisr),4))) -> 
H649: =IF(ROW()-ROW(FolowList)+1>ROWS(WorkLisr)-COUNTBLANK(WorkLisr),"",INDIRECT(ADDRESS(SMALL((IF(WorkLisr<>"",ROW(WorkLisr),ROW()+ROWS(WorkLisr))),ROW()-ROW(FolowList)+1),COLUMN(WorkLisr),4))) -> 
H650: =IF(ROW()-ROW(FolowList)+1>ROWS(WorkLisr)-COUNTBLANK(WorkLisr),"",INDIRECT(ADDRESS(SMALL((IF(WorkLisr<>"",ROW(WorkLisr),ROW()+ROWS(WorkLisr))),ROW()-ROW(FolowList)+1),COLUMN(WorkLisr),4))) -> 
H651: =IF(ROW()-ROW(FolowList)+1>ROWS(WorkLisr)-COUNTBLANK(WorkLisr),"",INDIRECT(ADDRESS(SMALL((IF(WorkLisr<>"",ROW(WorkLisr),ROW()+ROWS(WorkLisr))),ROW()-ROW(FolowList)+1),COLUMN(WorkLisr),4))) -> 
H652: =IF(ROW()-ROW(FolowList)+1>ROWS(WorkLisr)-COUNTBLANK(WorkLisr),"",INDIRECT(ADDRESS(SMALL((IF(WorkLisr<>"",ROW(WorkLisr),ROW()+ROWS(WorkLisr))),ROW()-ROW(FolowList)+1),COLUMN(WorkLisr),4))) -> 
H653: =IF(ROW()-ROW(FolowList)+1>ROWS(WorkLisr)-COUNTBLANK(WorkLisr),"",INDIRECT(ADDRESS(SMALL((IF(WorkLisr<>"",ROW(WorkLisr),ROW()+ROWS(WorkLisr))),ROW()-ROW(FolowList)+1),COLUMN(WorkLisr),4))) -> 
H654: =IF(ROW()-ROW(FolowList)+1>ROWS(WorkLisr)-COUNTBLANK(WorkLisr),"",INDIRECT(ADDRESS(SMALL((IF(WorkLisr<>"",ROW(WorkLisr),ROW()+ROWS(WorkLisr))),ROW()-ROW(FolowList)+1),COLUMN(WorkLisr),4))) -> 
H655: =IF(ROW()-ROW(FolowList)+1>ROWS(WorkLisr)-COUNTBLANK(WorkLisr),"",INDIRECT(ADDRESS(SMALL((IF(WorkLisr<>"",ROW(WorkLisr),ROW()+ROWS(WorkLisr))),ROW()-ROW(FolowList)+1),COLUMN(WorkLisr),4))) -> 
H656: =IF(ROW()-ROW(FolowList)+1>ROWS(WorkLisr)-COUNTBLANK(WorkLisr),"",INDIRECT(ADDRESS(SMALL((IF(WorkLisr<>"",ROW(WorkLisr),ROW()+ROWS(WorkLisr))),ROW()-ROW(FolowList)+1),COLUMN(WorkLisr),4))) -> 
H657: =IF(ROW()-ROW(FolowList)+1>ROWS(WorkLisr)-COUNTBLANK(WorkLisr),"",INDIRECT(ADDRESS(SMALL((IF(WorkLisr<>"",ROW(WorkLisr),ROW()+ROWS(WorkLisr))),ROW()-ROW(FolowList)+1),COLUMN(WorkLisr),4))) -> 
H658: =IF(ROW()-ROW(FolowList)+1>ROWS(WorkLisr)-COUNTBLANK(WorkLisr),"",INDIRECT(ADDRESS(SMALL((IF(WorkLisr<>"",ROW(WorkLisr),ROW()+ROWS(WorkLisr))),ROW()-ROW(FolowList)+1),COLUMN(WorkLisr),4))) -> 
H659: =IF(ROW()-ROW(FolowList)+1>ROWS(WorkLisr)-COUNTBLANK(WorkLisr),"",INDIRECT(ADDRESS(SMALL((IF(WorkLisr<>"",ROW(WorkLisr),ROW()+ROWS(WorkLisr))),ROW()-ROW(FolowList)+1),COLUMN(WorkLisr),4))) -> 
H660: =IF(ROW()-ROW(FolowList)+1>ROWS(WorkLisr)-COUNTBLANK(WorkLisr),"",INDIRECT(ADDRESS(SMALL((IF(WorkLisr<>"",ROW(WorkLisr),ROW()+ROWS(WorkLisr))),ROW()-ROW(FolowList)+1),COLUMN(WorkLisr),4))) -> 
H661: =IF(ROW()-ROW(FolowList)+1>ROWS(WorkLisr)-COUNTBLANK(WorkLisr),"",INDIRECT(ADDRESS(SMALL((IF(WorkLisr<>"",ROW(WorkLisr),ROW()+ROWS(WorkLisr))),ROW()-ROW(FolowList)+1),COLUMN(WorkLisr),4))) -> 
H662: =IF(ROW()-ROW(FolowList)+1>ROWS(WorkLisr)-COUNTBLANK(WorkLisr),"",INDIRECT(ADDRESS(SMALL((IF(WorkLisr<>"",ROW(WorkLisr),ROW()+ROWS(WorkLisr))),ROW()-ROW(FolowList)+1),COLUMN(WorkLisr),4))) -> 
H663: =IF(ROW()-ROW(FolowList)+1>ROWS(WorkLisr)-COUNTBLANK(WorkLisr),"",INDIRECT(ADDRESS(SMALL((IF(WorkLisr<>"",ROW(WorkLisr),ROW()+ROWS(WorkLisr))),ROW()-ROW(FolowList)+1),COLUMN(WorkLisr),4))) -> 
H664: =IF(ROW()-ROW(FolowList)+1>ROWS(WorkLisr)-COUNTBLANK(WorkLisr),"",INDIRECT(ADDRESS(SMALL((IF(WorkLisr<>"",ROW(WorkLisr),ROW()+ROWS(WorkLisr))),ROW()-ROW(FolowList)+1),COLUMN(WorkLisr),4))) -> 
H665: =IF(ROW()-ROW(FolowList)+1>ROWS(WorkLisr)-COUNTBLANK(WorkLisr),"",INDIRECT(ADDRESS(SMALL((IF(WorkLisr<>"",ROW(WorkLisr),ROW()+ROWS(WorkLisr))),ROW()-ROW(FolowList)+1),COLUMN(WorkLisr),4))) -> 
H666: =IF(ROW()-ROW(FolowList)+1>ROWS(WorkLisr)-COUNTBLANK(WorkLisr),"",INDIRECT(ADDRESS(SMALL((IF(WorkLisr<>"",ROW(WorkLisr),ROW()+ROWS(WorkLisr))),ROW()-ROW(FolowList)+1),COLUMN(WorkLisr),4))) -> 
... 326 more rows
